Workbook

Sheet نموذج
A1: اسم العميل | C1: محمد ابوحسام | G1: الرصيد الحالى | H1: 2200
A3: م | B3: مسحوبـــــــــــات | F3: تنزيـــــــــــــــــــــــــلات | J3: الرصيد
B4: المبلغ | C4: البيان | D4: التاريخ | E4: اليوم | F4: المبلغ | G4: البيان | H4: التاريخ | I4: اليوم
A5: 1 | B5: =H1 -> 2200 | C5: رصيد اول الفترة | D5: 2023-01-01 | E5: =IF(D5="","",TEXT(D5,"ddd")) -> الأحد | I5: =IF(H5="","",TEXT(H5,"ddd")) ->  | J5: =B5-F5 -> 2200
A6: 2 | E6: =IF(D6="","",TEXT(D6,"ddd")) ->  | I6: =IF(H6="","",TEXT(H6,"ddd")) ->  | J6: =J5+B6-F6 -> 2200
A7: 3 | J7: =J6+B7-F7 -> 2200
A8: 4 | J8: 2200
A9: 5 | J9: 2200
A10: 6 | J10: 2200
A11: 7 | J11: 2200
A12: 8 | J12: 2200
A13: 9 | J13: 2200
A14: 10 | J14: 2200
A15: 11 | J15: 2200
A16: 12 | J16: 2200
A17: 13 | J17: 2200
A18: 14 | J18: 2200
A19: 15 | J19: 2200
A20: 16 | J20: 2200
A21: 17 | J21: 2200
A22: 18 | J22: 2200
A23: 19 | J23: 2200
A24: 20 | J24: 2200
A25: 21 | J25: 2200
A26: 22 | J26: 2200
A27: 23 | J27: 2200
A28: 24 | J28: 2200
A29: 25 | J29: 2200
A30: 26 | J30: 2200
A31: 27 | J31: 2200
A32: 28 | J32: 2200
A33: 29 | J33: 2200
A34: 30 | J34: 2200

Sheet المحذوفين
A1: اسم العميل | B1: الرصيد | C1: تاريخ الحذف

Sheet العملاء
B1: كود العميل | C1: كود العميل | D1: الاسم | E1: الرصيد الحالى
C2: رضا جمعه حسين
C3: حمدان | D3: نموذج
C4: عمي حافظ العبد | D4: العملاء
C5: ام سعودي | D5: Sheet3
C6: فتحى بردونه | D6: رضا جمعه حسين
C7: ام ملك | D7: حمدان
C8: مصطفي حسن | D8: عمي حافظ العبد
C9: نوسة | D9: ام سعودي
C10: مرات محمد احمد قياتي | D10: فتحى بردونه
C11: مرات محمود عادل | D11: ام ملك
C12: د/ محمد احمد عبد الجواد | D12: مصطفي حسن
C13: احمد الجغل | D13: نوسة
C14: كمال جمعه حسين | D14: مرات محمد احمد قياتي
C15: وائل خلف | D15: مرات محمود عادل
C16: نادر ابو الوفا | D16: د محمد احمد عبد الجواد
C17: محمود عيسى حسن | D17: احمد الجغل
C18: محمد نصر | D18: كمال جمعه حسين
C19: ام مجدى راضى | D19: وائل خلف
C20: احمد محمد عبد الرحمن | D20: نادر ابو الوفا
C21: فراج العزبة | D21: محمد نصر
C22: مرات نجم | D22: ام مجدى راضى
C23: حماده محمد شلقامي | D23: فراج العزبة
C24: بنت عمى خليفه النوري | D24: مرات نجم
C25: سعيد عدلى | D25: حماده محمد شلقامي
C26: ياسين عبد الله | D26: سعيد عدلى
C27: محمود محمد الحنفى | D27: ياسين عبد الله
C28: ابو امير | D28: وليد رجب
C29: وليد رجب | D29: ناديه شقلوف
C30: ناديه شقلوف | D30: مرات طارق عبد الله
C31: مرات طارق عبد الله | D31: مرات عبد الحميد احمد
C32: مرات عبد الحميد احمد | D32: ام مطير
C33: ام مطير | D33: الديب
C34: الديب | D34: سحر
C35: سحر | D35: محمد رجب ابوطاقية
C36: محمد رجب ابوطاقية | D36: عادل عاشور
C37: عادل عاشور | D37: احمد شعبان عبد العظيم
C38: احمد شعبان عبد العظيم | D38: محمود عادل على
C39: محمود عادل على | D39: ناجي لطفى
C40: محمد عدلى | D40: مرات كمال عاشور
C41: ناجي لطفى | D41: جمال محمد جاد
C42: مرات كمال عاشور | D42: بنت الشيخ خيري
C43: جمال محمد جاد | D43: عبد الناصر ابو بكر
C44: بنت الشيخ خيري | D44: الحاج ابراهيم عيسى
C45: عبد الناصر ابو بكر | D45: وليد محمود
C46: الحاج ابراهيم عيسى | D46: مرات بليغ عبد الله
C47: وليد محمود | D47: الشيخ ربيع ابراهيم حمودة
C48: مرات بليغ عبد الله | D48: كرامات
C49: الشيخ ربيع ابراهيم حمودة | D49: ام عمارمرات الشيخ عثمان
C50: كرامات | D50: الشيخ خلف محروس
C51: ام عمارمرات الشيخ عثمان | D51: ام احمد نافع
C52: الشيخ خلف محروس | D52: محمود امين عبد الحفيظ
C53: ام احمد نافع | D53: مرات سيف معتمد
C54: محمود امين عبد الحفيظ | D54: محمد خميس
C55: مرات سيف معتمد | D55: شيماء جمعه
C56: محمد خميس | D56: مرات احمد محمد احمد الجزار
C57: شيماء جمعه | D57: حسام النجار
C58: مرات احمد محمد احمد الجزار | D58: خليفه كبدة
C59: محمد | D59: رقيه عونى
C60: محمود | D60: عرفه رجب فارس
C61: حسام النجار | D61: ناجى محمد على
C62: خليفه كبدة | D62: رضا محمود عبد الفتاح
C63: رقيه عونى | D63: محمد ابراهيم عمر
C64: عرفه رجب فارس | D64: خيرى اسماعيل
C65: ناجى محمد على | D65: ربيع محمود
C66: رضا محمود عبد الفتاح | D66: مرات احمد خيرى
C67: محمد ابراهيم عمر | D67: بثينه قياتى
C68: خيرى اسماعيل | D68: اشرف عبد الرحمن
C69: ربيع محمود | D69: حسام الدكش
C70: مرات احمد خيرى | D70: محمد جمال عبد العليم
C71: بثينه قياتى | D71: احمد الشيخ عيد
C72: اشرف عبد الرحمن | D72: محمود ممدوح
C73: حسام الدكش | D73: الشيخ حسان
C74: محمد جمال عبد العليم | D74: ربيع هنداوى
C75: احمد الشيخ عيد | D75: محمد صبحى عبد التواب
C76: محمود ممدوح | D76: ام الشيخ صلاح
C77: الشيخ حسان | D77: ام جمال عبد العال
C78: ربيع هنداوى | D78: على عبد الله
C79: محمد صبحى عبد التواب | D79: محمد حمزة الشايب
C80: ام الشيخ صلاح | D80: عبد الرحمن احمد
C81: ام جمال عبد العال | D81: مرات صلاح محمود
C82: الشيخ حسان ربيع | D82: احمد صالح حنظورة
C83: على عبد الله | D83: احمد ابراهيم محمد
C84: محمد حمزة الشايب | D84: عبد الناصر جمال
C85: عبد الرحمن احمد | D85: نبيل مجدى
C86: مرات صلاح محمود | D86: محمد زغلول الميرى
C87: احمد صالح حنظورة | D87: عيد محمد عبد الوهاب
C88: احمد ابراهيم محمد | D88: همت عبد الحميد
C89: عبد الناصر جمال | D89: سعيد راضى
C90: نبيل مجدى | D90: ام ياسين الجمال
C91: محمد زغلول الميرى | D91: ام خالد عربى
C92: عيد محمد عبد الوهاب | D92: عمرو محمد رجب
C93: همت عبد الحميد | D93: ربيع جمعه
C94: سعيد راضى | D94: محمد راضى عبد العليم
C95: ام ياسين الجمال | D95: مرات استاذ عماد عبد السميع
C96: ام خالد عربى
C97: عمرو محمد رجب
C98: ربيع جمعه
C99: محمد راضى عبد العليم
C100: مرات استاذ عماد عبد السميع
C101: محمد احمد
C102: محمد احمد عبد العزيز
C103: محمد ابوحسام

Sheet Sheet3
A1: اسم العميل | B1: الرصيد الحالى
A3: =العملاء!#REF! ->  | B3: =INDIRECT("'"&A3&"'!h1") -> 
A4: =العملاء!#REF! ->  | B4: =INDIRECT("'"&A4&"'!h1") -> 
A5: =العملاء!#REF! -> 
A6: =العملاء!#REF! -> 
A7: =العملاء!#REF! -> 
A8: =العملاء!#REF! -> 
A9: =العملاء!#REF! -> 
A10: =العملاء!#REF! -> 
A11: =العملاء!#REF! -> 
A12: =العملاء!#REF! -> 
A13: =العملاء!#REF! -> 
A14: =العملاء!#REF! -> 
A15: =العملاء!#REF! -> 
A16: =العملاء!#REF! -> 
A17: =العملاء!#REF! -> 
A18: =العملاء!#REF! -> 
A19: =العملاء!#REF! -> 
A20: =العملاء!#REF! -> 
A21: =العملاء!#REF! -> 
A22: =العملاء!#REF! -> 
A23: =العملاء!#REF! -> 
A24: =العملاء!#REF! -> 
A25: =العملاء!#REF! -> 
A26: =العملاء!#REF! -> 
A27: =العملاء!#REF! -> 
A28: =العملاء!#REF! -> 
A29: =العملاء!#REF! -> 
A30: =العملاء!#REF! -> 
A31: =العملاء!#REF! -> 
A32: =العملاء!#REF! -> 
A33: =العملاء!#REF! -> 
A34: =العملاء!#REF! -> 
A35: =العملاء!#REF! -> 
A36: =العملاء!#REF! -> 
A37: =العملاء!#REF! -> 
A38: =العملاء!#REF! -> 
A39: =العملاء!#REF! -> 
A40: =العملاء!#REF! -> 
A41: =العملاء!#REF! -> 
A42: =العملاء!#REF! -> 
A43: =العملاء!#REF! -> 
A44: =العملاء!#REF! -> 
A45: =العملاء!#REF! -> 
A46: =العملاء!#REF! -> 
A47: =العملاء!#REF! -> 
A48: =العملاء!#REF! -> 
A49: =العملاء!#REF! -> 
A50: =العملاء!#REF! -> 
A51: =العملاء!#REF! -> 
A52: =العملاء!#REF! -> 
A53: =العملاء!#REF! -> 
A54: =العملاء!#REF! -> 
A55: =العملاء!#REF! -> 
A56: =العملاء!#REF! -> 
A57: =العملاء!#REF! -> 
A58: =العملاء!#REF! -> 
A59: =العملاء!#REF! -> 
A60: =العملاء!#REF! -> 
A61: =العملاء!#REF! -> 
A62: =العملاء!#REF! -> 
A63: =العملاء!#REF! -> 
A64: =العملاء!#REF! -> 
A65: =العملاء!#REF! -> 
A66: =العملاء!#REF! -> 
A67: =العملاء!#REF! -> 
A68: =العملاء!#REF! ->  | B68: =INDIRECT("'"&A68&"'!h1") -> 
A69: =العملاء!#REF! -> 
A70: =العملاء!#REF! -> 
A71: =العملاء!#REF! -> 
A72: =العملاء!#REF! -> 
A73: =العملاء!#REF! -> 
A74: =العملاء!#REF! -> 
A75: =العملاء!#REF! -> 
A76: =العملاء!#REF! -> 
A77: =العملاء!#REF! -> 
A78: =العملاء!#REF! -> 
A79: =العملاء!#REF! -> 
A80: =العملاء!#REF! -> 
A81: =العملاء!#REF! -> 
A82: =العملاء!#REF! -> 
A83: =العملاء!#REF! -> 
A84: =العملاء!#REF! -> 
A85: =العملاء!#REF! -> 
A86: =العملاء!#REF! -> 
A87: =العملاء!#REF! -> 
A88: =العملاء!#REF! -> 
A89: =العملاء!#REF! -> 
A90: =العملاء!#REF! -> 
A91: =العملاء!#REF! -> 
A92: =العملاء!#REF! -> 
A93: =العملاء!#REF! -> 
A94: =العملاء!#REF! -> 
A95: =العملاء!#REF! -> 
A96: =العملاء!#REF! -> 
A97: =العملاء!#REF! -> 
A98: =العملاء!#REF! -> 
A99: =العملاء!#REF! -> 
A100: =العملاء!#REF! -> 
A101: =العملاء!#REF! -> 
A102: =العملاء!#REF! -> 
A103: =العملاء!#REF! -> 
B132: =INDIRECT("'"&A132&"'!h1") -> 
B196: =INDIRECT("'"&A196&"'!h1") -> 
B260: =INDIRECT("'"&A260&"'!h1") -> 

Sheet رضا جمعه حسين
A1: اسم العميل | C1: رضا جمعه حسين | G1: الرصيد الحالى | H1: =SUM(B5:B34)-SUM(F5:F34) -> 1598.55
A2: كود العميل
A3: م | B3: مسحوبـــــــــــات | F3: تنزيـــــــــــــــــــــــــلات | J3: الرصيد
B4: المبلغ | C4: البيان | D4: التاريخ | E4: اليوم | F4: المبلغ | G4: البيان | H4: التاريخ | I4: اليوم
A5: 1 | B5: 1598.55 | E5: =IF(D5="","",TEXT(D5,"ddd")) ->  | I5: =IF(H5="","",TEXT(H5,"ddd")) ->  | J5: =B5-F5 -> 1598.55
A6: 2 | I6: =IF(H6="","",TEXT(H6,"ddd")) ->  | J6: =J5+B6-F6 -> 1598.55
A7: 3 | E7: =IF(D7="","",TEXT(D7,"ddd")) ->  | J7: =J6+B7-F7 -> 1598.55
A8: 4 | J8: 1598.55
A9: 5 | J9: 1598.55
A10: 6 | J10: 1598.55
A11: 7 | J11: 1598.55
A12: 8 | J12: 1598.55
A13: 9 | J13: 1598.55
A14: 10 | J14: 1598.55
A15: 11 | J15: 1598.55
A16: 12 | J16: 1598.55
A17: 13 | J17: 1598.55
A18: 14 | J18: 1598.55
A19: 15 | J19: 1598.55
A20: 16 | J20: 1598.55
A21: 17 | J21: 1598.55
A22: 18 | J22: 1598.55
A23: 19 | J23: 1598.55
A24: 20 | J24: 1598.55
A25: 21 | J25: 1598.55
A26: 22 | J26: 1598.55
A27: 23 | J27: 1598.55
A28: 24 | J28: 1598.55
A29: 25 | J29: 1598.55
A30: 26 | J30: 1598.55
A31: 27 | J31: 1598.55
A32: 28 | J32: 1598.55
A33: 29 | J33: 1598.55
A34: 30 | J34: 1598.55

Sheet حمدان
A1: اسم العميل | C1: حمدان | G1: الرصيد الحالى | H1: =J34 -> 111.5
A2: كود العميل
A3: م | B3: مسحوبـــــــــــات | F3: تنزيـــــــــــــــــــــــــلات | J3: الرصيد
B4: المبلغ | C4: البيان | D4: التاريخ | E4: اليوم | F4: المبلغ | G4: البيان | H4: التاريخ | I4: اليوم
A5: 1 | B5: 111.5 | E5: =IF(D5="","",TEXT(D5,"ddd")) ->  | I5: =IF(H5="","",TEXT(H5,"ddd")) ->  | J5: =B5-F5 -> 111.5
A6: 2 | I6: =IF(H6="","",TEXT(H6,"ddd")) ->  | J6: =J5+B6-F6 -> 111.5
A7: 3 | E7: =IF(D7="","",TEXT(D7,"ddd")) ->  | J7: =J6+B7-F7 -> 111.5
A8: 4 | J8: 111.5
A9: 5 | J9: 111.5
A10: 6 | J10: 111.5
A11: 7 | J11: 111.5
A12: 8 | J12: 111.5
A13: 9 | J13: 111.5
A14: 10 | J14: 111.5
A15: 11 | J15: 111.5
A16: 12 | J16: 111.5
A17: 13 | J17: 111.5
A18: 14 | J18: 111.5
A19: 15 | J19: 111.5
A20: 16 | J20: 111.5
A21: 17 | J21: 111.5
A22: 18 | J22: 111.5
A23: 19 | J23: 111.5
A24: 20 | J24: 111.5
A25: 21 | J25: 111.5
A26: 22 | J26: 111.5
A27: 23 | J27: 111.5
A28: 24 | J28: 111.5
A29: 25 | J29: 111.5
A30: 26 | J30: 111.5
A31: 27 | J31: 111.5
A32: 28 | J32: 111.5
A33: 29 | J33: 111.5
A34: 30 | J34: 111.5

Sheet عمي حافظ العبد
A1: اسم العميل | C1: عمي حافظ العبد | G1: الرصيد الحالى | H1: =J34 -> 280
A2: كود العميل
A3: م | B3: مسحوبـــــــــــات | F3: تنزيـــــــــــــــــــــــــلات | J3: الرصيد
B4: المبلغ | C4: البيان | D4: التاريخ | E4: اليوم | F4: المبلغ | G4: البيان | H4: التاريخ | I4: اليوم
A5: 1 | B5: 280 | E5: =IF(D5="","",TEXT(D5,"ddd")) ->  | I5: =IF(H5="","",TEXT(H5,"ddd")) ->  | J5: =B5-F5 -> 280
A6: 2 | I6: =IF(H6="","",TEXT(H6,"ddd")) ->  | J6: =J5+B6-F6 -> 280
A7: 3 | E7: =IF(D7="","",TEXT(D7,"ddd")) ->  | J7: =J6+B7-F7 -> 280
A8: 4 | J8: 280
A9: 5 | J9: 280
A10: 6 | J10: 280
A11: 7 | J11: 280
A12: 8 | J12: 280
A13: 9 | J13: 280
A14: 10 | J14: 280
A15: 11 | J15: 280
A16: 12 | J16: 280
A17: 13 | J17: 280
A18: 14 | J18: 280
A19: 15 | J19: 280
A20: 16 | J20: 280
A21: 17 | J21: 280
A22: 18 | J22: 280
A23: 19 | J23: 280
A24: 20 | J24: 280
A25: 21 | J25: 280
A26: 22 | J26: 280
A27: 23 | J27: 280
A28: 24 | J28: 280
A29: 25 | J29: 280
A30: 26 | J30: 280
A31: 27 | J31: 280
A32: 28 | J32: 280
A33: 29 | J33: 280
A34: 30 | J34: 280

Sheet ام سعودي
A1: اسم العميل | C1: ام سعودي | G1: الرصيد الحالى | H1: =J34 -> 80.5
A2: كود العميل
A3: م | B3: مسحوبـــــــــــات | F3: تنزيـــــــــــــــــــــــــلات | J3: الرصيد
B4: المبلغ | C4: البيان | D4: التاريخ | E4: اليوم | F4: المبلغ | G4: البيان | H4: التاريخ | I4: اليوم
A5: 1 | B5: 80.5 | E5: =IF(D5="","",TEXT(D5,"ddd")) ->  | I5: =IF(H5="","",TEXT(H5,"ddd")) ->  | J5: =B5-F5 -> 80.5
A6: 2 | I6: =IF(H6="","",TEXT(H6,"ddd")) ->  | J6: =J5+B6-F6 -> 80.5
A7: 3 | E7: =IF(D7="","",TEXT(D7,"ddd")) ->  | J7: =J6+B7-F7 -> 80.5
A8: 4 | J8: 80.5
A9: 5 | J9: 80.5
A10: 6 | J10: 80.5
A11: 7 | J11: 80.5
A12: 8 | J12: 80.5
A13: 9 | J13: 80.5
A14: 10 | J14: 80.5
A15: 11 | J15: 80.5
A16: 12 | J16: 80.5
A17: 13 | J17: 80.5
A18: 14 | J18: 80.5
A19: 15 | J19: 80.5
A20: 16 | J20: 80.5
A21: 17 | J21: 80.5
A22: 18 | J22: 80.5
A23: 19 | J23: 80.5
A24: 20 | J24: 80.5
A25: 21 | J25: 80.5
A26: 22 | J26: 80.5
A27: 23 | J27: 80.5
A28: 24 | J28: 80.5
A29: 25 | J29: 80.5
A30: 26 | J30: 80.5
A31: 27 | J31: 80.5
A32: 28 | J32: 80.5
A33: 29 | J33: 80.5
A34: 30 | J34: 80.5

Sheet فتحى بردونه
A1: اسم العميل | C1: فتحى بردونه | G1: الرصيد الحالى | H1: =J34 -> 23.5
A2: كود العميل
A3: م | B3: مسحوبـــــــــــات | F3: تنزيـــــــــــــــــــــــــلات | J3: الرصيد
B4: المبلغ | C4: البيان | D4: التاريخ | E4: اليوم | F4: المبلغ | G4: البيان | H4: التاريخ | I4: اليوم
A5: 1 | B5: 23.5 | E5: =IF(D5="","",TEXT(D5,"ddd")) ->  | I5: =IF(H5="","",TEXT(H5,"ddd")) ->  | J5: =B5-F5 -> 23.5
A6: 2 | I6: =IF(H6="","",TEXT(H6,"ddd")) ->  | J6: =J5+B6-F6 -> 23.5
A7: 3 | E7: =IF(D7="","",TEXT(D7,"ddd")) ->  | J7: =J6+B7-F7 -> 23.5
A8: 4 | J8: 23.5
A9: 5 | J9: 23.5
A10: 6 | J10: 23.5
A11: 7 | J11: 23.5
A12: 8 | J12: 23.5
A13: 9 | J13: 23.5
A14: 10 | J14: 23.5
A15: 11 | J15: 23.5
A16: 12 | J16: 23.5
A17: 13 | J17: 23.5
A18: 14 | J18: 23.5
A19: 15 | J19: 23.5
A20: 16 | J20: 23.5
A21: 17 | J21: 23.5
A22: 18 | J22: 23.5
A23: 19 | J23: 23.5
A24: 20 | J24: 23.5
A25: 21 | J25: 23.5
A26: 22 | J26: 23.5
A27: 23 | J27: 23.5
A28: 24 | J28: 23.5
A29: 25 | J29: 23.5
A30: 26 | J30: 23.5
A31: 27 | J31: 23.5
A32: 28 | J32: 23.5
A33: 29 | J33: 23.5
A34: 30 | J34: 23.5

Sheet ام ملك
A1: اسم العميل | C1: ام ملك | G1: الرصيد الحالى | H1: =J34 -> 192.5
A2: كود العميل
A3: م | B3: مسحوبـــــــــــات | F3: تنزيـــــــــــــــــــــــــلات | J3: الرصيد
B4: المبلغ | C4: البيان | D4: التاريخ | E4: اليوم | F4: المبلغ | G4: البيان | H4: التاريخ | I4: اليوم
A5: 1 | B5: 192.5 | E5: =IF(D5="","",TEXT(D5,"ddd")) ->  | I5: =IF(H5="","",TEXT(H5,"ddd")) ->  | J5: =B5-F5 -> 192.5
A6: 2 | I6: =IF(H6="","",TEXT(H6,"ddd")) ->  | J6: =J5+B6-F6 -> 192.5
A7: 3 | E7: =IF(D7="","",TEXT(D7,"ddd")) ->  | J7: =J6+B7-F7 -> 192.5
A8: 4 | J8: 192.5
A9: 5 | J9: 192.5
A10: 6 | J10: 192.5
A11: 7 | J11: 192.5
A12: 8 | J12: 192.5
A13: 9 | J13: 192.5
A14: 10 | J14: 192.5
A15: 11 | J15: 192.5
A16: 12 | J16: 192.5
A17: 13 | J17: 192.5
A18: 14 | J18: 192.5
A19: 15 | J19: 192.5
A20: 16 | J20: 192.5
A21: 17 | J21: 192.5
A22: 18 | J22: 192.5
A23: 19 | J23: 192.5
A24: 20 | J24: 192.5
A25: 21 | J25: 192.5
A26: 22 | J26: 192.5
A27: 23 | J27: 192.5
A28: 24 | J28: 192.5
A29: 25 | J29: 192.5
A30: 26 | J30: 192.5
A31: 27 | J31: 192.5
A32: 28 | J32: 192.5
A33: 29 | J33: 192.5
A34: 30 | J34: 192.5

Sheet مصطفي حسن
A1: اسم العميل | C1: مصطفي حسن | G1: الرصيد الحالى | H1: =J34 -> 229
A2: كود العميل
A3: م | B3: مسحوبـــــــــــات | F3: تنزيـــــــــــــــــــــــــلات | J3: الرصيد
B4: المبلغ | C4: البيان | D4: التاريخ | E4: اليوم | F4: المبلغ | G4: البيان | H4: التاريخ | I4: اليوم
A5: 1 | B5: 229 | E5: =IF(D5="","",TEXT(D5,"ddd")) ->  | I5: =IF(H5="","",TEXT(H5,"ddd")) ->  | J5: =B5-F5 -> 229
A6: 2 | I6: =IF(H6="","",TEXT(H6,"ddd")) ->  | J6: =J5+B6-F6 -> 229
A7: 3 | E7: =IF(D7="","",TEXT(D7,"ddd")) ->  | J7: =J6+B7-F7 -> 229
A8: 4 | J8: 229
A9: 5 | J9: 229
A10: 6 | J10: 229
A11: 7 | J11: 229
A12: 8 | J12: 229
A13: 9 | J13: 229
A14: 10 | J14: 229
A15: 11 | J15: 229
A16: 12 | J16: 229
A17: 13 | J17: 229
A18: 14 | J18: 229
A19: 15 | J19: 229
A20: 16 | J20: 229
A21: 17 | J21: 229
A22: 18 | J22: 229
A23: 19 | J23: 229
A24: 20 | J24: 229
A25: 21 | J25: 229
A26: 22 | J26: 229
A27: 23 | J27: 229
A28: 24 | J28: 229
A29: 25 | J29: 229
A30: 26 | J30: 229
A31: 27 | J31: 229
A32: 28 | J32: 229
A33: 29 | J33: 229
A34: 30 | J34: 229

Sheet نوسة
A1: اسم العميل | C1: نوسة | G1: الرصيد الحالى | H1: =J34 -> 340
A2: كود العميل
A3: م | B3: مسحوبـــــــــــات | F3: تنزيـــــــــــــــــــــــــلات | J3: الرصيد
B4: المبلغ | C4: البيان | D4: التاريخ | E4: اليوم | F4: المبلغ | G4: البيان | H4: التاريخ | I4: اليوم
A5: 1 | B5: 340 | E5: =IF(D5="","",TEXT(D5,"ddd")) ->  | I5: =IF(H5="","",TEXT(H5,"ddd")) ->  | J5: =B5-F5 -> 340
A6: 2 | I6: =IF(H6="","",TEXT(H6,"ddd")) ->  | J6: =J5+B6-F6 -> 340
A7: 3 | E7: =IF(D7="","",TEXT(D7,"ddd")) ->  | J7: =J6+B7-F7 -> 340
A8: 4 | J8: 340
A9: 5 | J9: 340
A10: 6 | J10: 340
A11: 7 | J11: 340
A12: 8 | J12: 340
A13: 9 | J13: 340
A14: 10 | J14: 340
A15: 11 | J15: 340
A16: 12 | J16: 340
A17: 13 | J17: 340
A18: 14 | J18: 340
A19: 15 | J19: 340
A20: 16 | J20: 340
A21: 17 | J21: 340
A22: 18 | J22: 340
A23: 19 | J23: 340
A24: 20 | J24: 340
A25: 21 | J25: 340
A26: 22 | J26: 340
A27: 23 | J27: 340
A28: 24 | J28: 340
A29: 25 | J29: 340
A30: 26 | J30: 340
A31: 27 | J31: 340
A32: 28 | J32: 340
A33: 29 | J33: 340
A34: 30 | J34: 340

Sheet مرات محمد احمد قياتي
A1: اسم العميل | C1: مرات محمد احمد قياتي | G1: الرصيد الحالى | H1: =J34 -> 126.5
A2: كود العميل
A3: م | B3: مسحوبـــــــــــات | F3: تنزيـــــــــــــــــــــــــلات | J3: الرصيد
B4: المبلغ | C4: البيان | D4: التاريخ | E4: اليوم | F4: المبلغ | G4: البيان | H4: التاريخ | I4: اليوم
A5: 1 | B5: 126.5 | E5: =IF(D5="","",TEXT(D5,"ddd")) ->  | I5: =IF(H5="","",TEXT(H5,"ddd")) ->  | J5: =B5-F5 -> 126.5
A6: 2 | I6: =IF(H6="","",TEXT(H6,"ddd")) ->  | J6: =J5+B6-F6 -> 126.5
A7: 3 | E7: =IF(D7="","",TEXT(D7,"ddd")) ->  | J7: =J6+B7-F7 -> 126.5
A8: 4 | J8: 126.5
A9: 5 | J9: 126.5
A10: 6 | J10: 126.5
A11: 7 | J11: 126.5
A12: 8 | J12: 126.5
A13: 9 | J13: 126.5
A14: 10 | J14: 126.5
A15: 11 | J15: 126.5
A16: 12 | J16: 126.5
A17: 13 | J17: 126.5
A18: 14 | J18: 126.5
A19: 15 | J19: 126.5
A20: 16 | J20: 126.5
A21: 17 | J21: 126.5
A22: 18 | J22: 126.5
A23: 19 | J23: 126.5
A24: 20 | J24: 126.5
A25: 21 | J25: 126.5
A26: 22 | J26: 126.5
A27: 23 | J27: 126.5
A28: 24 | J28: 126.5
A29: 25 | J29: 126.5
A30: 26 | J30: 126.5
A31: 27 | J31: 126.5
A32: 28 | J32: 126.5
A33: 29 | J33: 126.5
A34: 30 | J34: 126.5

Sheet مرات محمود عادل
A1: اسم العميل | C1: مرات محمود عادل | G1: الرصيد الحالى | H1: =J34 -> 1474.75
A2: كود العميل
A3: م | B3: مسحوبـــــــــــات | F3: تنزيـــــــــــــــــــــــــلات | J3: الرصيد
B4: المبلغ | C4: البيان | D4: التاريخ | E4: اليوم | F4: المبلغ | G4: البيان | H4: التاريخ | I4: اليوم
A5: 1 | B5: 1474.75 | E5: =IF(D5="","",TEXT(D5,"ddd")) ->  | I5: =IF(H5="","",TEXT(H5,"ddd")) ->  | J5: =B5-F5 -> 1474.75
A6: 2 | I6: =IF(H6="","",TEXT(H6,"ddd")) ->  | J6: =J5+B6-F6 -> 1474.75
A7: 3 | E7: =IF(D7="","",TEXT(D7,"ddd")) ->  | J7: =J6+B7-F7 -> 1474.75
A8: 4 | J8: 1474.75
A9: 5 | J9: 1474.75
A10: 6 | J10: 1474.75
A11: 7 | J11: 1474.75
A12: 8 | J12: 1474.75
A13: 9 | J13: 1474.75
A14: 10 | J14: 1474.75
A15: 11 | J15: 1474.75
A16: 12 | J16: 1474.75
A17: 13 | J17: 1474.75
A18: 14 | J18: 1474.75
A19: 15 | J19: 1474.75
A20: 16 | J20: 1474.75
A21: 17 | J21: 1474.75
A22: 18 | J22: 1474.75
A23: 19 | J23: 1474.75
A24: 20 | J24: 1474.75
A25: 21 | J25: 1474.75
A26: 22 | J26: 1474.75
A27: 23 | J27: 1474.75
A28: 24 | J28: 1474.75
A29: 25 | J29: 1474.75
A30: 26 | J30: 1474.75
A31: 27 | J31: 1474.75
A32: 28 | J32: 1474.75
A33: 29 | J33: 1474.75
A34: 30 | J34: 1474.75

Sheet د محمد احمد عبد الجواد
A1: اسم العميل | C1: د/ محمد احمد عبد الجواد | G1: الرصيد الحالى | H1: =J34 -> 135
A2: كود العميل
A3: م | B3: مسحوبـــــــــــات | F3: تنزيـــــــــــــــــــــــــلات | J3: الرصيد
B4: المبلغ | C4: البيان | D4: التاريخ | E4: اليوم | F4: المبلغ | G4: البيان | H4: التاريخ | I4: اليوم
A5: 1 | B5: 135 | E5: =IF(D5="","",TEXT(D5,"ddd")) ->  | I5: =IF(H5="","",TEXT(H5,"ddd")) ->  | J5: =B5-F5 -> 135
A6: 2 | I6: =IF(H6="","",TEXT(H6,"ddd")) ->  | J6: =J5+B6-F6 -> 135
A7: 3 | E7: =IF(D7="","",TEXT(D7,"ddd")) ->  | J7: =J6+B7-F7 -> 135
A8: 4 | J8: 135
A9: 5 | J9: 135
A10: 6 | J10: 135
A11: 7 | J11: 135
A12: 8 | J12: 135
A13: 9 | J13: 135
A14: 10 | J14: 135
A15: 11 | J15: 135
A16: 12 | J16: 135
A17: 13 | J17: 135
A18: 14 | J18: 135
A19: 15 | J19: 135
A20: 16 | J20: 135
A21: 17 | J21: 135
A22: 18 | J22: 135
A23: 19 | J23: 135
A24: 20 | J24: 135
A25: 21 | J25: 135
A26: 22 | J26: 135
A27: 23 | J27: 135
A28: 24 | J28: 135
A29: 25 | J29: 135
A30: 26 | J30: 135
A31: 27 | J31: 135
A32: 28 | J32: 135
A33: 29 | J33: 135
A34: 30 | J34: 135

Sheet احمد الجغل
A1: اسم العميل | C1: احمد الجغل | G1: الرصيد الحالى | H1: =J34 -> 1584.75
A2: كود العميل
A3: م | B3: مسحوبـــــــــــات | F3: تنزيـــــــــــــــــــــــــلات | J3: الرصيد
B4: المبلغ | C4: البيان | D4: التاريخ | E4: اليوم | F4: المبلغ | G4: البيان | H4: التاريخ | I4: اليوم
A5: 1 | B5: 1584.75 | E5: =IF(D5="","",TEXT(D5,"ddd")) ->  | I5: =IF(H5="","",TEXT(H5,"ddd")) ->  | J5: =B5-F5 -> 1584.75
A6: 2 | I6: =IF(H6="","",TEXT(H6,"ddd")) ->  | J6: =J5+B6-F6 -> 1584.75
A7: 3 | E7: =IF(D7="","",TEXT(D7,"ddd")) ->  | J7: =J6+B7-F7 -> 1584.75
A8: 4 | J8: 1584.75
A9: 5 | J9: 1584.75
A10: 6 | J10: 1584.75
A11: 7 | J11: 1584.75
A12: 8 | J12: 1584.75
A13: 9 | J13: 1584.75
A14: 10 | J14: 1584.75
A15: 11 | J15: 1584.75
A16: 12 | J16: 1584.75
A17: 13 | J17: 1584.75
A18: 14 | J18: 1584.75
A19: 15 | J19: 1584.75
A20: 16 | J20: 1584.75
A21: 17 | J21: 1584.75
A22: 18 | J22: 1584.75
A23: 19 | J23: 1584.75
A24: 20 | J24: 1584.75
A25: 21 | J25: 1584.75
A26: 22 | J26: 1584.75
A27: 23 | J27: 1584.75
A28: 24 | J28: 1584.75
A29: 25 | J29: 1584.75
A30: 26 | J30: 1584.75
A31: 27 | J31: 1584.75
A32: 28 | J32: 1584.75
A33: 29 | J33: 1584.75
A34: 30 | J34: 1584.75

Sheet كمال جمعه حسين
A1: اسم العميل | C1: كمال جمعه حسين | G1: الرصيد الحالى | H1: =J34 -> 135.5
A2: كود العميل
A3: م | B3: مسحوبـــــــــــات | F3: تنزيـــــــــــــــــــــــــلات | J3: الرصيد
B4: المبلغ | C4: البيان | D4: التاريخ | E4: اليوم | F4: المبلغ | G4: البيان | H4: التاريخ | I4: اليوم
A5: 1 | B5: 135.5 | E5: =IF(D5="","",TEXT(D5,"ddd")) ->  | I5: =IF(H5="","",TEXT(H5,"ddd")) ->  | J5: =B5-F5 -> 135.5
A6: 2 | I6: =IF(H6="","",TEXT(H6,"ddd")) ->  | J6: =J5+B6-F6 -> 135.5
A7: 3 | E7: =IF(D7="","",TEXT(D7,"ddd")) ->  | J7: =J6+B7-F7 -> 135.5
A8: 4 | J8: 135.5
A9: 5 | J9: 135.5
A10: 6 | J10: 135.5
A11: 7 | J11: 135.5
A12: 8 | J12: 135.5
A13: 9 | J13: 135.5
A14: 10 | J14: 135.5
A15: 11 | J15: 135.5
A16: 12 | J16: 135.5
A17: 13 | J17: 135.5
A18: 14 | J18: 135.5
A19: 15 | J19: 135.5
A20: 16 | J20: 135.5
A21: 17 | J21: 135.5
A22: 18 | J22: 135.5
A23: 19 | J23: 135.5
A24: 20 | J24: 135.5
A25: 21 | J25: 135.5
A26: 22 | J26: 135.5
A27: 23 | J27: 135.5
A28: 24 | J28: 135.5
A29: 25 | J29: 135.5
A30: 26 | J30: 135.5
A31: 27 | J31: 135.5
A32: 28 | J32: 135.5
A33: 29 | J33: 135.5
A34: 30 | J34: 135.5

Sheet وائل خلف
A1: اسم العميل | C1: وائل خلف | G1: الرصيد الحالى | H1: =J34 -> 651.25
A2: كود العميل
A3: م | B3: مسحوبـــــــــــات | F3: تنزيـــــــــــــــــــــــــلات | J3: الرصيد
B4: المبلغ | C4: البيان | D4: التاريخ | E4: اليوم | F4: المبلغ | G4: البيان | H4: التاريخ | I4: اليوم
A5: 1 | B5: 651.25 | E5: =IF(D5="","",TEXT(D5,"ddd")) ->  | I5: =IF(H5="","",TEXT(H5,"ddd")) ->  | J5: =B5-F5 -> 651.25
A6: 2 | I6: =IF(H6="","",TEXT(H6,"ddd")) ->  | J6: =J5+B6-F6 -> 651.25
A7: 3 | E7: =IF(D7="","",TEXT(D7,"ddd")) ->  | J7: =J6+B7-F7 -> 651.25
A8: 4 | J8: 651.25
A9: 5 | J9: 651.25
A10: 6 | J10: 651.25
A11: 7 | J11: 651.25
A12: 8 | J12: 651.25
A13: 9 | J13: 651.25
A14: 10 | J14: 651.25
A15: 11 | J15: 651.25
A16: 12 | J16: 651.25
A17: 13 | J17: 651.25
A18: 14 | J18: 651.25
A19: 15 | J19: 651.25
A20: 16 | J20: 651.25
A21: 17 | J21: 651.25
A22: 18 | J22: 651.25
A23: 19 | J23: 651.25
A24: 20 | J24: 651.25
A25: 21 | J25: 651.25
A26: 22 | J26: 651.25
A27: 23 | J27: 651.25
A28: 24 | J28: 651.25
A29: 25 | J29: 651.25
A30: 26 | J30: 651.25
A31: 27 | J31: 651.25
A32: 28 | J32: 651.25
A33: 29 | J33: 651.25
A34: 30 | J34: 651.25

Sheet نادر ابو الوفا
A1: اسم العميل | C1: نادر ابو الوفا | G1: الرصيد الحالى | H1: =J34 -> 264.25
A2: كود العميل
A3: م | B3: مسحوبـــــــــــات | F3: تنزيـــــــــــــــــــــــــلات | J3: الرصيد
B4: المبلغ | C4: البيان | D4: التاريخ | E4: اليوم | F4: المبلغ | G4: البيان | H4: التاريخ | I4: اليوم
A5: 1 | B5: 264.25 | E5: =IF(D5="","",TEXT(D5,"ddd")) ->  | I5: =IF(H5="","",TEXT(H5,"ddd")) ->  | J5: =B5-F5 -> 264.25
A6: 2 | I6: =IF(H6="","",TEXT(H6,"ddd")) ->  | J6: =J5+B6-F6 -> 264.25
A7: 3 | E7: =IF(D7="","",TEXT(D7,"ddd")) ->  | J7: =J6+B7-F7 -> 264.25
A8: 4 | J8: 264.25
A9: 5 | J9: 264.25
A10: 6 | J10: 264.25
A11: 7 | J11: 264.25
A12: 8 | J12: 264.25
A13: 9 | J13: 264.25
A14: 10 | J14: 264.25
A15: 11 | J15: 264.25
A16: 12 | J16: 264.25
A17: 13 | J17: 264.25
A18: 14 | J18: 264.25
A19: 15 | J19: 264.25
A20: 16 | J20: 264.25
A21: 17 | J21: 264.25
A22: 18 | J22: 264.25
A23: 19 | J23: 264.25
A24: 20 | J24: 264.25
A25: 21 | J25: 264.25
A26: 22 | J26: 264.25
A27: 23 | J27: 264.25
A28: 24 | J28: 264.25
A29: 25 | J29: 264.25
A30: 26 | J30: 264.25
A31: 27 | J31: 264.25
A32: 28 | J32: 264.25
A33: 29 | J33: 264.25
A34: 30 | J34: 264.25

Sheet محمد نصر
A1: اسم العميل | C1: محمد نصر | G1: الرصيد الحالى | H1: =J34 -> 107.5
A2: كود العميل
A3: م | B3: مسحوبـــــــــــات | F3: تنزيـــــــــــــــــــــــــلات | J3: الرصيد
B4: المبلغ | C4: البيان | D4: التاريخ | E4: اليوم | F4: المبلغ | G4: البيان | H4: التاريخ | I4: اليوم
A5: 1 | B5: 107.5 | E5: =IF(D5="","",TEXT(D5,"ddd")) ->  | I5: =IF(H5="","",TEXT(H5,"ddd")) ->  | J5: =B5-F5 -> 107.5
A6: 2 | I6: =IF(H6="","",TEXT(H6,"ddd")) ->  | J6: =J5+B6-F6 -> 107.5
A7: 3 | E7: =IF(D7="","",TEXT(D7,"ddd")) ->  | J7: =J6+B7-F7 -> 107.5
A8: 4 | J8: 107.5
A9: 5 | J9: 107.5
A10: 6 | J10: 107.5
A11: 7 | J11: 107.5
A12: 8 | J12: 107.5
A13: 9 | J13: 107.5
A14: 10 | J14: 107.5
A15: 11 | J15: 107.5
A16: 12 | J16: 107.5
A17: 13 | J17: 107.5
A18: 14 | J18: 107.5
A19: 15 | J19: 107.5
A20: 16 | J20: 107.5
A21: 17 | J21: 107.5
A22: 18 | J22: 107.5
A23: 19 | J23: 107.5
A24: 20 | J24: 107.5
A25: 21 | J25: 107.5
A26: 22 | J26: 107.5
A27: 23 | J27: 107.5
A28: 24 | J28: 107.5
A29: 25 | J29: 107.5
A30: 26 | J30: 107.5
A31: 27 | J31: 107.5
A32: 28 | J32: 107.5
A33: 29 | J33: 107.5
A34: 30 | J34: 107.5

Sheet ام مجدى راضى
A1: اسم العميل | C1: ام مجدى راضى | G1: الرصيد الحالى | H1: =J34 -> 69.75
A3: م | B3: مسحوبـــــــــــات | F3: تنزيـــــــــــــــــــــــــلات | J3: الرصيد
B4: المبلغ | C4: البيان | D4: التاريخ | E4: اليوم | F4: المبلغ | G4: البيان | H4: التاريخ | I4: اليوم
A5: 1 | B5: 69.75 | E5: =IF(D5="","",TEXT(D5,"ddd")) ->  | I5: =IF(H5="","",TEXT(H5,"ddd")) ->  | J5: =B5-F5 -> 69.75
A6: 2 | I6: =IF(H6="","",TEXT(H6,"ddd")) ->  | J6: =J5+B6-F6 -> 69.75
A7: 3 | E7: =IF(D7="","",TEXT(D7,"ddd")) ->  | J7: =J6+B7-F7 -> 69.75
A8: 4 | J8: 69.75
A9: 5 | J9: 69.75
A10: 6 | J10: 69.75
A11: 7 | J11: 69.75
A12: 8 | J12: 69.75
A13: 9 | J13: 69.75
A14: 10 | J14: 69.75
A15: 11 | J15: 69.75
A16: 12 | J16: 69.75
A17: 13 | J17: 69.75
A18: 14 | J18: 69.75
A19: 15 | J19: 69.75
A20: 16 | J20: 69.75
A21: 17 | J21: 69.75
A22: 18 | J22: 69.75
A23: 19 | J23: 69.75
A24: 20 | J24: 69.75
A25: 21 | J25: 69.75
A26: 22 | J26: 69.75
A27: 23 | J27: 69.75
A28: 24 | J28: 69.75
A29: 25 | J29: 69.75
A30: 26 | J30: 69.75
A31: 27 | J31: 69.75
A32: 28 | J32: 69.75
A33: 29 | J33: 69.75
A34: 30 | J34: 69.75

Sheet فراج العزبة
A1: اسم العميل | C1: فراج العزبة | G1: الرصيد الحالى | H1: =J34 -> 99
A3: م | B3: مسحوبـــــــــــات | F3: تنزيـــــــــــــــــــــــــلات | J3: الرصيد
B4: المبلغ | C4: البيان | D4: التاريخ | E4: اليوم | F4: المبلغ | G4: البيان | H4: التاريخ | I4: اليوم
A5: 1 | B5: 99 | E5: =IF(D5="","",TEXT(D5,"ddd")) ->  | I5: =IF(H5="","",TEXT(H5,"ddd")) ->  | J5: =B5-F5 -> 99
A6: 2 | I6: =IF(H6="","",TEXT(H6,"ddd")) ->  | J6: =J5+B6-F6 -> 99
A7: 3 | E7: =IF(D7="","",TEXT(D7,"ddd")) ->  | J7: =J6+B7-F7 -> 99
A8: 4 | J8: 99
A9: 5 | J9: 99
A10: 6 | J10: 99
A11: 7 | J11: 99
A12: 8 | J12: 99
A13: 9 | J13: 99
A14: 10 | J14: 99
A15: 11 | J15: 99
A16: 12 | J16: 99
A17: 13 | J17: 99
A18: 14 | J18: 99
A19: 15 | J19: 99
A20: 16 | J20: 99
A21: 17 | J21: 99
A22: 18 | J22: 99
A23: 19 | J23: 99
A24: 20 | J24: 99
A25: 21 | J25: 99
A26: 22 | J26: 99
A27: 23 | J27: 99
A28: 24 | J28: 99
A29: 25 | J29: 99
A30: 26 | J30: 99
A31: 27 | J31: 99
A32: 28 | J32: 99
A33: 29 | J33: 99
A34: 30 | J34: 99

Sheet مرات نجم
A1: اسم العميل | C1: مرات نجم | G1: الرصيد الحالى | H1: =J34 -> 311.5
A3: م | B3: مسحوبـــــــــــات | F3: تنزيـــــــــــــــــــــــــلات | J3: الرصيد
B4: المبلغ | C4: البيان | D4: التاريخ | E4: اليوم | F4: المبلغ | G4: البيان | H4: التاريخ | I4: اليوم
A5: 1 | B5: 311.5 | E5: =IF(D5="","",TEXT(D5,"ddd")) ->  | I5: =IF(H5="","",TEXT(H5,"ddd")) ->  | J5: =B5-F5 -> 311.5
A6: 2 | I6: =IF(H6="","",TEXT(H6,"ddd")) ->  | J6: =J5+B6-F6 -> 311.5
A7: 3 | E7: =IF(D7="","",TEXT(D7,"ddd")) ->  | J7: =J6+B7-F7 -> 311.5
A8: 4 | J8: 311.5
A9: 5 | J9: 311.5
A10: 6 | J10: 311.5
A11: 7 | J11: 311.5
A12: 8 | J12: 311.5
A13: 9 | J13: 311.5
A14: 10 | J14: 311.5
A15: 11 | J15: 311.5
A16: 12 | J16: 311.5
A17: 13 | J17: 311.5
A18: 14 | J18: 311.5
A19: 15 | J19: 311.5
A20: 16 | J20: 311.5
A21: 17 | J21: 311.5
A22: 18 | J22: 311.5
A23: 19 | J23: 311.5
A24: 20 | J24: 311.5
A25: 21 | J25: 311.5
A26: 22 | J26: 311.5
A27: 23 | J27: 311.5
A28: 24 | J28: 311.5
A29: 25 | J29: 311.5
A30: 26 | J30: 311.5
A31: 27 | J31: 311.5
A32: 28 | J32: 311.5
A33: 29 | J33: 311.5
A34: 30 | J34: 311.5

Sheet حماده محمد شلقامي
A1: اسم العميل | C1: حماده محمد شلقامي | G1: الرصيد الحالى | H1: =J34 -> 96
A3: م | B3: مسحوبـــــــــــات | F3: تنزيـــــــــــــــــــــــــلات | J3: الرصيد
B4: المبلغ | C4: البيان | D4: التاريخ | E4: اليوم | F4: المبلغ | G4: البيان | H4: التاريخ | I4: اليوم
A5: 1 | B5: 96 | E5: =IF(D5="","",TEXT(D5,"ddd")) ->  | I5: =IF(H5="","",TEXT(H5,"ddd")) ->  | J5: =B5-F5 -> 96
A6: 2 | I6: =IF(H6="","",TEXT(H6,"ddd")) ->  | J6: =J5+B6-F6 -> 96
A7: 3 | E7: =IF(D7="","",TEXT(D7,"ddd")) ->  | J7: =J6+B7-F7 -> 96
A8: 4 | J8: 96
A9: 5 | J9: 96
A10: 6 | J10: 96
A11: 7 | J11: 96
A12: 8 | J12: 96
A13: 9 | J13: 96
A14: 10 | J14: 96
A15: 11 | J15: 96
A16: 12 | J16: 96
A17: 13 | J17: 96
A18: 14 | J18: 96
A19: 15 | J19: 96
A20: 16 | J20: 96
A21: 17 | J21: 96
A22: 18 | J22: 96
A23: 19 | J23: 96
A24: 20 | J24: 96
A25: 21 | J25: 96
A26: 22 | J26: 96
A27: 23 | J27: 96
A28: 24 | J28: 96
A29: 25 | J29: 96
A30: 26 | J30: 96
A31: 27 | J31: 96
A32: 28 | J32: 96
A33: 29 | J33: 96
A34: 30 | J34: 96

Sheet سعيد عدلى
A1: اسم العميل | C1: سعيد عدلى | G1: الرصيد الحالى | H1: =J34 -> 192
A3: م | B3: مسحوبـــــــــــات | F3: تنزيـــــــــــــــــــــــــلات | J3: الرصيد
B4: المبلغ | C4: البيان | D4: التاريخ | E4: اليوم | F4: المبلغ | G4: البيان | H4: التاريخ | I4: اليوم
A5: 1 | B5: 192 | E5: =IF(D5="","",TEXT(D5,"ddd")) ->  | I5: =IF(H5="","",TEXT(H5,"ddd")) ->  | J5: =B5-F5 -> 192
A6: 2 | I6: =IF(H6="","",TEXT(H6,"ddd")) ->  | J6: =J5+B6-F6 -> 192
A7: 3 | E7: =IF(D7="","",TEXT(D7,"ddd")) ->  | J7: =J6+B7-F7 -> 192
A8: 4 | J8: 192
A9: 5 | J9: 192
A10: 6 | J10: 192
A11: 7 | J11: 192
A12: 8 | J12: 192
A13: 9 | J13: 192
A14: 10 | J14: 192
A15: 11 | J15: 192
A16: 12 | J16: 192
A17: 13 | J17: 192
A18: 14 | J18: 192
A19: 15 | J19: 192
A20: 16 | J20: 192
A21: 17 | J21: 192
A22: 18 | J22: 192
A23: 19 | J23: 192
A24: 20 | J24: 192
A25: 21 | J25: 192
A26: 22 | J26: 192
A27: 23 | J27: 192
A28: 24 | J28: 192
A29: 25 | J29: 192
A30: 26 | J30: 192
A31: 27 | J31: 192
A32: 28 | J32: 192
A33: 29 | J33: 192
A34: 30 | J34: 192

Sheet ياسين عبد الله
A1: اسم العميل | C1: ياسين عبد الله | G1: الرصيد الحالى | H1: =J34 -> 67.5
A3: م | B3: مسحوبـــــــــــات | F3: تنزيـــــــــــــــــــــــــلات | J3: الرصيد
B4: المبلغ | C4: البيان | D4: التاريخ | E4: اليوم | F4: المبلغ | G4: البيان | H4: التاريخ | I4: اليوم
A5: 1 | B5: 67.5 | E5: =IF(D5="","",TEXT(D5,"ddd")) ->  | I5: =IF(H5="","",TEXT(H5,"ddd")) ->  | J5: =B5-F5 -> 67.5
A6: 2 | I6: =IF(H6="","",TEXT(H6,"ddd")) ->  | J6: =J5+B6-F6 -> 67.5
A7: 3 | E7: =IF(D7="","",TEXT(D7,"ddd")) ->  | J7: =J6+B7-F7 -> 67.5
A8: 4 | J8: 67.5
A9: 5 | J9: 67.5
A10: 6 | J10: 67.5
A11: 7 | J11: 67.5
A12: 8 | J12: 67.5
A13: 9 | J13: 67.5
A14: 10 | J14: 67.5
A15: 11 | J15: 67.5
A16: 12 | J16: 67.5
A17: 13 | J17: 67.5
A18: 14 | J18: 67.5
A19: 15 | J19: 67.5
A20: 16 | J20: 67.5
A21: 17 | J21: 67.5
A22: 18 | J22: 67.5
A23: 19 | J23: 67.5
A24: 20 | J24: 67.5
A25: 21 | J25: 67.5
A26: 22 | J26: 67.5
A27: 23 | J27: 67.5
A28: 24 | J28: 67.5
A29: 25 | J29: 67.5
A30: 26 | J30: 67.5
A31: 27 | J31: 67.5
A32: 28 | J32: 67.5
A33: 29 | J33: 67.5
A34: 30 | J34: 67.5

Sheet وليد رجب
A1: اسم العميل | C1: وليد رجب | G1: الرصيد الحالى | H1: =J34 -> 0
A3: م | B3: مسحوبـــــــــــات | F3: تنزيـــــــــــــــــــــــــلات | J3: الرصيد
B4: المبلغ | C4: البيان | D4: التاريخ | E4: اليوم | F4: المبلغ | G4: البيان | H4: التاريخ | I4: اليوم
A5: 1 | E5: =IF(D5="","",TEXT(D5,"ddd")) ->  | I5: =IF(H5="","",TEXT(H5,"ddd")) ->  | J5: =B5-F5 -> 0
A6: 2 | I6: =IF(H6="","",TEXT(H6,"ddd")) ->  | J6: =J5+B6-F6 -> 0
A7: 3 | E7: =IF(D7="","",TEXT(D7,"ddd")) ->  | J7: =J6+B7-F7 -> 0
A8: 4 | J8: 0
A9: 5 | J9: 0
A10: 6 | J10: 0
A11: 7 | J11: 0
A12: 8 | J12: 0
A13: 9 | J13: 0
A14: 10 | J14: 0
A15: 11 | J15: 0
A16: 12 | J16: 0
A17: 13 | J17: 0
A18: 14 | J18: 0
A19: 15 | J19: 0
A20: 16 | J20: 0
A21: 17 | J21: 0
A22: 18 | J22: 0
A23: 19 | J23: 0
A24: 20 | J24: 0
A25: 21 | J25: 0
A26: 22 | J26: 0
A27: 23 | J27: 0
A28: 24 | J28: 0
A29: 25 | J29: 0
A30: 26 | J30: 0
A31: 27 | J31: 0
A32: 28 | J32: 0
A33: 29 | J33: 0
A34: 30 | J34: 0

Sheet ناديه شقلوف
A1: اسم العميل | C1: ناديه شقلوف | G1: الرصيد الحالى | H1: =J34 -> 0
A3: م | B3: مسحوبـــــــــــات | F3: تنزيـــــــــــــــــــــــــلات | J3: الرصيد
B4: المبلغ | C4: البيان | D4: التاريخ | E4: اليوم | F4: المبلغ | G4: البيان | H4: التاريخ | I4: اليوم
A5: 1 | E5: =IF(D5="","",TEXT(D5,"ddd")) ->  | I5: =IF(H5="","",TEXT(H5,"ddd")) ->  | J5: =B5-F5 -> 0
A6: 2 | I6: =IF(H6="","",TEXT(H6,"ddd")) ->  | J6: =J5+B6-F6 -> 0
A7: 3 | E7: =IF(D7="","",TEXT(D7,"ddd")) ->  | J7: =J6+B7-F7 -> 0
A8: 4 | J8: 0
A9: 5 | J9: 0
A10: 6 | J10: 0
A11: 7 | J11: 0
A12: 8 | J12: 0
A13: 9 | J13: 0
A14: 10 | J14: 0
A15: 11 | J15: 0
A16: 12 | J16: 0
A17: 13 | J17: 0
A18: 14 | J18: 0
A19: 15 | J19: 0
A20: 16 | J20: 0
A21: 17 | J21: 0
A22: 18 | J22: 0
A23: 19 | J23: 0
A24: 20 | J24: 0
A25: 21 | J25: 0
A26: 22 | J26: 0
A27: 23 | J27: 0
A28: 24 | J28: 0
A29: 25 | J29: 0
A30: 26 | J30: 0
A31: 27 | J31: 0
A32: 28 | J32: 0
A33: 29 | J33: 0
A34: 30 | J34: 0

Sheet مرات طارق عبد الله
A1: اسم العميل | C1: مرات طارق عبد الله | G1: الرصيد الحالى | H1: =J34 -> 0
A3: م | B3: مسحوبـــــــــــات | F3: تنزيـــــــــــــــــــــــــلات | J3: الرصيد
B4: المبلغ | C4: البيان | D4: التاريخ | E4: اليوم | F4: المبلغ | G4: البيان | H4: التاريخ | I4: اليوم
A5: 1 | E5: =IF(D5="","",TEXT(D5,"ddd")) ->  | I5: =IF(H5="","",TEXT(H5,"ddd")) ->  | J5: =B5-F5 -> 0
A6: 2 | I6: =IF(H6="","",TEXT(H6,"ddd")) ->  | J6: =J5+B6-F6 -> 0
A7: 3 | E7: =IF(D7="","",TEXT(D7,"ddd")) ->  | J7: =J6+B7-F7 -> 0
A8: 4 | J8: 0
A9: 5 | J9: 0
A10: 6 | J10: 0
A11: 7 | J11: 0
A12: 8 | J12: 0
A13: 9 | J13: 0
A14: 10 | J14: 0
A15: 11 | J15: 0
A16: 12 | J16: 0
A17: 13 | J17: 0
A18: 14 | J18: 0
A19: 15 | J19: 0
A20: 16 | J20: 0
A21: 17 | J21: 0
A22: 18 | J22: 0
A23: 19 | J23: 0
A24: 20 | J24: 0
A25: 21 | J25: 0
A26: 22 | J26: 0
A27: 23 | J27: 0
A28: 24 | J28: 0
A29: 25 | J29: 0
A30: 26 | J30: 0
A31: 27 | J31: 0
A32: 28 | J32: 0
A33: 29 | J33: 0
A34: 30 | J34: 0

Sheet مرات عبد الحميد احمد
A1: اسم العميل | C1: مرات عبد الحميد احمد | G1: الرصيد الحالى | H1: =J34 -> 0
A3: م | B3: مسحوبـــــــــــات | F3: تنزيـــــــــــــــــــــــــلات | J3: الرصيد
B4: المبلغ | C4: البيان | D4: التاريخ | E4: اليوم | F4: المبلغ | G4: البيان | H4: التاريخ | I4: اليوم
A5: 1 | E5: =IF(D5="","",TEXT(D5,"ddd")) ->  | I5: =IF(H5="","",TEXT(H5,"ddd")) ->  | J5: =B5-F5 -> 0
A6: 2 | I6: =IF(H6="","",TEXT(H6,"ddd")) ->  | J6: =J5+B6-F6 -> 0
A7: 3 | E7: =IF(D7="","",TEXT(D7,"ddd")) ->  | J7: =J6+B7-F7 -> 0
A8: 4 | J8: 0
A9: 5 | J9: 0
A10: 6 | J10: 0
A11: 7 | J11: 0
A12: 8 | J12: 0
A13: 9 | J13: 0
A14: 10 | J14: 0
A15: 11 | J15: 0
A16: 12 | J16: 0
A17: 13 | J17: 0
A18: 14 | J18: 0
A19: 15 | J19: 0
A20: 16 | J20: 0
A21: 17 | J21: 0
A22: 18 | J22: 0
A23: 19 | J23: 0
A24: 20 | J24: 0
A25: 21 | J25: 0
A26: 22 | J26: 0
A27: 23 | J27: 0
A28: 24 | J28: 0
A29: 25 | J29: 0
A30: 26 | J30: 0
A31: 27 | J31: 0
A32: 28 | J32: 0
A33: 29 | J33: 0
A34: 30 | J34: 0

Sheet ام مطير
A1: اسم العميل | C1: ام مطير | G1: الرصيد الحالى | H1: =J34 -> 0
A3: م | B3: مسحوبـــــــــــات | F3: تنزيـــــــــــــــــــــــــلات | J3: الرصيد
B4: المبلغ | C4: البيان | D4: التاريخ | E4: اليوم | F4: المبلغ | G4: البيان | H4: التاريخ | I4: اليوم
A5: 1 | E5: =IF(D5="","",TEXT(D5,"ddd")) ->  | I5: =IF(H5="","",TEXT(H5,"ddd")) ->  | J5: =B5-F5 -> 0
A6: 2 | I6: =IF(H6="","",TEXT(H6,"ddd")) ->  | J6: =J5+B6-F6 -> 0
A7: 3 | E7: =IF(D7="","",TEXT(D7,"ddd")) ->  | J7: =J6+B7-F7 -> 0
A8: 4 | J8: 0
A9: 5 | J9: 0
A10: 6 | J10: 0
A11: 7 | J11: 0
A12: 8 | J12: 0
A13: 9 | J13: 0
A14: 10 | J14: 0
A15: 11 | J15: 0
A16: 12 | J16: 0
A17: 13 | J17: 0
A18: 14 | J18: 0
A19: 15 | J19: 0
A20: 16 | J20: 0
A21: 17 | J21: 0
A22: 18 | J22: 0
A23: 19 | J23: 0
A24: 20 | J24: 0
A25: 21 | J25: 0
A26: 22 | J26: 0
A27: 23 | J27: 0
A28: 24 | J28: 0
A29: 25 | J29: 0
A30: 26 | J30: 0
A31: 27 | J31: 0
A32: 28 | J32: 0
A33: 29 | J33: 0
A34: 30 | J34: 0

Sheet الديب
A1: اسم العميل | C1: الديب | G1: الرصيد الحالى | H1: =J34 -> 0
A3: م | B3: مسحوبـــــــــــات | F3: تنزيـــــــــــــــــــــــــلات | J3: الرصيد
B4: المبلغ | C4: البيان | D4: التاريخ | E4: اليوم | F4: المبلغ | G4: البيان | H4: التاريخ | I4: اليوم
A5: 1 | E5: =IF(D5="","",TEXT(D5,"ddd")) ->  | I5: =IF(H5="","",TEXT(H5,"ddd")) ->  | J5: =B5-F5 -> 0
A6: 2 | I6: =IF(H6="","",TEXT(H6,"ddd")) ->  | J6: =J5+B6-F6 -> 0
A7: 3 | E7: =IF(D7="","",TEXT(D7,"ddd")) ->  | J7: =J6+B7-F7 -> 0
A8: 4 | J8: 0
A9: 5 | J9: 0
A10: 6 | J10: 0
A11: 7 | J11: 0
A12: 8 | J12: 0
A13: 9 | J13: 0
A14: 10 | J14: 0
A15: 11 | J15: 0
A16: 12 | J16: 0
A17: 13 | J17: 0
A18: 14 | J18: 0
A19: 15 | J19: 0
A20: 16 | J20: 0
A21: 17 | J21: 0
A22: 18 | J22: 0
A23: 19 | J23: 0
A24: 20 | J24: 0
A25: 21 | J25: 0
A26: 22 | J26: 0
A27: 23 | J27: 0
A28: 24 | J28: 0
A29: 25 | J29: 0
A30: 26 | J30: 0
A31: 27 | J31: 0
A32: 28 | J32: 0
A33: 29 | J33: 0
A34: 30 | J34: 0

Sheet سحر
A1: اسم العميل | C1: سحر | G1: الرصيد الحالى | H1: =J34 -> 0
A3: م | B3: مسحوبـــــــــــات | F3: تنزيـــــــــــــــــــــــــلات | J3: الرصيد
B4: المبلغ | C4: البيان | D4: التاريخ | E4: اليوم | F4: المبلغ | G4: البيان | H4: التاريخ | I4: اليوم
A5: 1 | E5: =IF(D5="","",TEXT(D5,"ddd")) ->  | I5: =IF(H5="","",TEXT(H5,"ddd")) ->  | J5: =B5-F5 -> 0
A6: 2 | I6: =IF(H6="","",TEXT(H6,"ddd")) ->  | J6: =J5+B6-F6 -> 0
A7: 3 | E7: =IF(D7="","",TEXT(D7,"ddd")) ->  | J7: =J6+B7-F7 -> 0
A8: 4 | J8: 0
A9: 5 | J9: 0
A10: 6 | J10: 0
A11: 7 | J11: 0
A12: 8 | J12: 0
A13: 9 | J13: 0
A14: 10 | J14: 0
A15: 11 | J15: 0
A16: 12 | J16: 0
A17: 13 | J17: 0
A18: 14 | J18: 0
A19: 15 | J19: 0
A20: 16 | J20: 0
A21: 17 | J21: 0
A22: 18 | J22: 0
A23: 19 | J23: 0
A24: 20 | J24: 0
A25: 21 | J25: 0
A26: 22 | J26: 0
A27: 23 | J27: 0
A28: 24 | J28: 0
A29: 25 | J29: 0
A30: 26 | J30: 0
A31: 27 | J31: 0
A32: 28 | J32: 0
A33: 29 | J33: 0
A34: 30 | J34: 0

Sheet محمد رجب ابوطاقية
A1: اسم العميل | C1: محمد رجب ابوطاقية | G1: الرصيد الحالى | H1: =J34 -> 0
A3: م | B3: مسحوبـــــــــــات | F3: تنزيـــــــــــــــــــــــــلات | J3: الرصيد
B4: المبلغ | C4: البيان | D4: التاريخ | E4: اليوم | F4: المبلغ | G4: البيان | H4: التاريخ | I4: اليوم
A5: 1 | E5: =IF(D5="","",TEXT(D5,"ddd")) ->  | I5: =IF(H5="","",TEXT(H5,"ddd")) ->  | J5: =B5-F5 -> 0
A6: 2 | I6: =IF(H6="","",TEXT(H6,"ddd")) ->  | J6: =J5+B6-F6 -> 0
A7: 3 | E7: =IF(D7="","",TEXT(D7,"ddd")) ->  | J7: =J6+B7-F7 -> 0
A8: 4 | J8: 0
A9: 5 | J9: 0
A10: 6 | J10: 0
A11: 7 | J11: 0
A12: 8 | J12: 0
A13: 9 | J13: 0
A14: 10 | J14: 0
A15: 11 | J15: 0
A16: 12 | J16: 0
A17: 13 | J17: 0
A18: 14 | J18: 0
A19: 15 | J19: 0
A20: 16 | J20: 0
A21: 17 | J21: 0
A22: 18 | J22: 0
A23: 19 | J23: 0
A24: 20 | J24: 0
A25: 21 | J25: 0
A26: 22 | J26: 0
A27: 23 | J27: 0
A28: 24 | J28: 0
A29: 25 | J29: 0
A30: 26 | J30: 0
A31: 27 | J31: 0
A32: 28 | J32: 0
A33: 29 | J33: 0
A34: 30 | J34: 0

Sheet عادل عاشور
A1: اسم العميل | C1: عادل عاشور | G1: الرصيد الحالى | H1: =J34 -> 0
A3: م | B3: مسحوبـــــــــــات | F3: تنزيـــــــــــــــــــــــــلات | J3: الرصيد
B4: المبلغ | C4: البيان | D4: التاريخ | E4: اليوم | F4: المبلغ | G4: البيان | H4: التاريخ | I4: اليوم
A5: 1 | E5: =IF(D5="","",TEXT(D5,"ddd")) ->  | I5: =IF(H5="","",TEXT(H5,"ddd")) ->  | J5: =B5-F5 -> 0
A6: 2 | I6: =IF(H6="","",TEXT(H6,"ddd")) ->  | J6: =J5+B6-F6 -> 0
A7: 3 | E7: =IF(D7="","",TEXT(D7,"ddd")) ->  | J7: =J6+B7-F7 -> 0
A8: 4 | J8: 0
A9: 5 | J9: 0
A10: 6 | J10: 0
A11: 7 | J11: 0
A12: 8 | J12: 0
A13: 9 | J13: 0
A14: 10 | J14: 0
A15: 11 | J15: 0
A16: 12 | J16: 0
A17: 13 | J17: 0
A18: 14 | J18: 0
A19: 15 | J19: 0
A20: 16 | J20: 0
A21: 17 | J21: 0
A22: 18 | J22: 0
A23: 19 | J23: 0
A24: 20 | J24: 0
A25: 21 | J25: 0
A26: 22 | J26: 0
A27: 23 | J27: 0
A28: 24 | J28: 0
A29: 25 | J29: 0
A30: 26 | J30: 0
A31: 27 | J31: 0
A32: 28 | J32: 0
A33: 29 | J33: 0
A34: 30 | J34: 0

Sheet احمد شعبان عبد العظيم
A1: اسم العميل | C1: احمد شعبان عبد العظيم | G1: الرصيد الحالى | H1: =J34 -> 0
A3: م | B3: مسحوبـــــــــــات | F3: تنزيـــــــــــــــــــــــــلات | J3: الرصيد
B4: المبلغ | C4: البيان | D4: التاريخ | E4: اليوم | F4: المبلغ | G4: البيان | H4: التاريخ | I4: اليوم
A5: 1 | E5: =IF(D5="","",TEXT(D5,"ddd")) ->  | I5: =IF(H5="","",TEXT(H5,"ddd")) ->  | J5: =B5-F5 -> 0
A6: 2 | I6: =IF(H6="","",TEXT(H6,"ddd")) ->  | J6: =J5+B6-F6 -> 0
A7: 3 | E7: =IF(D7="","",TEXT(D7,"ddd")) ->  | J7: =J6+B7-F7 -> 0
A8: 4 | J8: 0
A9: 5 | J9: 0
A10: 6 | J10: 0
A11: 7 | J11: 0
A12: 8 | J12: 0
A13: 9 | J13: 0
A14: 10 | J14: 0
A15: 11 | J15: 0
A16: 12 | J16: 0
A17: 13 | J17: 0
A18: 14 | J18: 0
A19: 15 | J19: 0
A20: 16 | J20: 0
A21: 17 | J21: 0
A22: 18 | J22: 0
A23: 19 | J23: 0
A24: 20 | J24: 0
A25: 21 | J25: 0
A26: 22 | J26: 0
A27: 23 | J27: 0
A28: 24 | J28: 0
A29: 25 | J29: 0
A30: 26 | J30: 0
A31: 27 | J31: 0
A32: 28 | J32: 0
A33: 29 | J33: 0
A34: 30 | J34: 0

Sheet محمود عادل على
A1: اسم العميل | C1: محمود عادل على | G1: الرصيد الحالى | H1: =J34 -> 0
A3: م | B3: مسحوبـــــــــــات | F3: تنزيـــــــــــــــــــــــــلات | J3: الرصيد
B4: المبلغ | C4: البيان | D4: التاريخ | E4: اليوم | F4: المبلغ | G4: البيان | H4: التاريخ | I4: اليوم
A5: 1 | E5: =IF(D5="","",TEXT(D5,"ddd")) ->  | I5: =IF(H5="","",TEXT(H5,"ddd")) ->  | J5: =B5-F5 -> 0
A6: 2 | I6: =IF(H6="","",TEXT(H6,"ddd")) ->  | J6: =J5+B6-F6 -> 0
A7: 3 | E7: =IF(D7="","",TEXT(D7,"ddd")) ->  | J7: =J6+B7-F7 -> 0
A8: 4 | J8: 0
A9: 5 | J9: 0
A10: 6 | J10: 0
A11: 7 | J11: 0
A12: 8 | J12: 0
A13: 9 | J13: 0
A14: 10 | J14: 0
A15: 11 | J15: 0
A16: 12 | J16: 0
A17: 13 | J17: 0
A18: 14 | J18: 0
A19: 15 | J19: 0
A20: 16 | J20: 0
A21: 17 | J21: 0
A22: 18 | J22: 0
A23: 19 | J23: 0
A24: 20 | J24: 0
A25: 21 | J25: 0
A26: 22 | J26: 0
A27: 23 | J27: 0
A28: 24 | J28: 0
A29: 25 | J29: 0
A30: 26 | J30: 0
A31: 27 | J31: 0
A32: 28 | J32: 0
A33: 29 | J33: 0
A34: 30 | J34: 0

Sheet ناجي لطفى
A1: اسم العميل | C1: ناجي لطفى | G1: الرصيد الحالى | H1: =J34 -> 0
A3: م | B3: مسحوبـــــــــــات | F3: تنزيـــــــــــــــــــــــــلات | J3: الرصيد
B4: المبلغ | C4: البيان | D4: التاريخ | E4: اليوم | F4: المبلغ | G4: البيان | H4: التاريخ | I4: اليوم
A5: 1 | E5: =IF(D5="","",TEXT(D5,"ddd")) ->  | I5: =IF(H5="","",TEXT(H5,"ddd")) ->  | J5: =B5-F5 -> 0
A6: 2 | I6: =IF(H6="","",TEXT(H6,"ddd")) ->  | J6: =J5+B6-F6 -> 0
A7: 3 | E7: =IF(D7="","",TEXT(D7,"ddd")) ->  | J7: =J6+B7-F7 -> 0
A8: 4 | J8: 0
A9: 5 | J9: 0
A10: 6 | J10: 0
A11: 7 | J11: 0
A12: 8 | J12: 0
A13: 9 | J13: 0
A14: 10 | J14: 0
A15: 11 | J15: 0
A16: 12 | J16: 0
A17: 13 | J17: 0
A18: 14 | J18: 0
A19: 15 | J19: 0
A20: 16 | J20: 0
A21: 17 | J21: 0
A22: 18 | J22: 0
A23: 19 | J23: 0
A24: 20 | J24: 0
A25: 21 | J25: 0
A26: 22 | J26: 0
A27: 23 | J27: 0
A28: 24 | J28: 0
A29: 25 | J29: 0
A30: 26 | J30: 0
A31: 27 | J31: 0
A32: 28 | J32: 0
A33: 29 | J33: 0
A34: 30 | J34: 0

Sheet مرات كمال عاشور
A1: اسم العميل | C1: مرات كمال عاشور | G1: الرصيد الحالى | H1: =J34 -> 0
A3: م | B3: مسحوبـــــــــــات | F3: تنزيـــــــــــــــــــــــــلات | J3: الرصيد
B4: المبلغ | C4: البيان | D4: التاريخ | E4: اليوم | F4: المبلغ | G4: البيان | H4: التاريخ | I4: اليوم
A5: 1 | E5: =IF(D5="","",TEXT(D5,"ddd")) ->  | I5: =IF(H5="","",TEXT(H5,"ddd")) ->  | J5: =B5-F5 -> 0
A6: 2 | I6: =IF(H6="","",TEXT(H6,"ddd")) ->  | J6: =J5+B6-F6 -> 0
A7: 3 | E7: =IF(D7="","",TEXT(D7,"ddd")) ->  | J7: =J6+B7-F7 -> 0
A8: 4 | J8: 0
A9: 5 | J9: 0
A10: 6 | J10: 0
A11: 7 | J11: 0
A12: 8 | J12: 0
A13: 9 | J13: 0
A14: 10 | J14: 0
A15: 11 | J15: 0
A16: 12 | J16: 0
A17: 13 | J17: 0
A18: 14 | J18: 0
A19: 15 | J19: 0
A20: 16 | J20: 0
A21: 17 | J21: 0
A22: 18 | J22: 0
A23: 19 | J23: 0
A24: 20 | J24: 0
A25: 21 | J25: 0
A26: 22 | J26: 0
A27: 23 | J27: 0
A28: 24 | J28: 0
A29: 25 | J29: 0
A30: 26 | J30: 0
A31: 27 | J31: 0
A32: 28 | J32: 0
A33: 29 | J33: 0
A34: 30 | J34: 0

Sheet جمال محمد جاد
A1: اسم العميل | C1: جمال محمد جاد | G1: الرصيد الحالى | H1: =J34 -> 0
A3: م | B3: مسحوبـــــــــــات | F3: تنزيـــــــــــــــــــــــــلات | J3: الرصيد
B4: المبلغ | C4: البيان | D4: التاريخ | E4: اليوم | F4: المبلغ | G4: البيان | H4: التاريخ | I4: اليوم
A5: 1 | E5: =IF(D5="","",TEXT(D5,"ddd")) ->  | I5: =IF(H5="","",TEXT(H5,"ddd")) ->  | J5: =B5-F5 -> 0
A6: 2 | I6: =IF(H6="","",TEXT(H6,"ddd")) ->  | J6: =J5+B6-F6 -> 0
A7: 3 | E7: =IF(D7="","",TEXT(D7,"ddd")) ->  | J7: =J6+B7-F7 -> 0
A8: 4 | J8: 0
A9: 5 | J9: 0
A10: 6 | J10: 0
A11: 7 | J11: 0
A12: 8 | J12: 0
A13: 9 | J13: 0
A14: 10 | J14: 0
A15: 11 | J15: 0
A16: 12 | J16: 0
A17: 13 | J17: 0
A18: 14 | J18: 0
A19: 15 | J19: 0
A20: 16 | J20: 0
A21: 17 | J21: 0
A22: 18 | J22: 0
A23: 19 | J23: 0
A24: 20 | J24: 0
A25: 21 | J25: 0
A26: 22 | J26: 0
A27: 23 | J27: 0
A28: 24 | J28: 0
A29: 25 | J29: 0
A30: 26 | J30: 0
A31: 27 | J31: 0
A32: 28 | J32: 0
A33: 29 | J33: 0
A34: 30 | J34: 0

Sheet بنت الشيخ خيري
A1: اسم العميل | C1: بنت الشيخ خيري | G1: الرصيد الحالى | H1: =J34 -> 0
A3: م | B3: مسحوبـــــــــــات | F3: تنزيـــــــــــــــــــــــــلات | J3: الرصيد
B4: المبلغ | C4: البيان | D4: التاريخ | E4: اليوم | F4: المبلغ | G4: البيان | H4: التاريخ | I4: اليوم
A5: 1 | E5: =IF(D5="","",TEXT(D5,"ddd")) ->  | I5: =IF(H5="","",TEXT(H5,"ddd")) ->  | J5: =B5-F5 -> 0
A6: 2 | I6: =IF(H6="","",TEXT(H6,"ddd")) ->  | J6: =J5+B6-F6 -> 0
A7: 3 | E7: =IF(D7="","",TEXT(D7,"ddd")) ->  | J7: =J6+B7-F7 -> 0
A8: 4 | J8: 0
A9: 5 | J9: 0
A10: 6 | J10: 0
A11: 7 | J11: 0
A12: 8 | J12: 0
A13: 9 | J13: 0
A14: 10 | J14: 0
A15: 11 | J15: 0
A16: 12 | J16: 0
A17: 13 | J17: 0
A18: 14 | J18: 0
A19: 15 | J19: 0
A20: 16 | J20: 0
A21: 17 | J21: 0
A22: 18 | J22: 0
A23: 19 | J23: 0
A24: 20 | J24: 0
A25: 21 | J25: 0
A26: 22 | J26: 0
A27: 23 | J27: 0
A28: 24 | J28: 0
A29: 25 | J29: 0
A30: 26 | J30: 0
A31: 27 | J31: 0
A32: 28 | J32: 0
A33: 29 | J33: 0
A34: 30 | J34: 0

Sheet عبد الناصر ابو بكر
A1: اسم العميل | C1: عبد الناصر ابو بكر | G1: الرصيد الحالى | H1: =J34 -> 0
A3: م | B3: مسحوبـــــــــــات | F3: تنزيـــــــــــــــــــــــــلات | J3: الرصيد
B4: المبلغ | C4: البيان | D4: التاريخ | E4: اليوم | F4: المبلغ | G4: البيان | H4: التاريخ | I4: اليوم
A5: 1 | E5: =IF(D5="","",TEXT(D5,"ddd")) ->  | I5: =IF(H5="","",TEXT(H5,"ddd")) ->  | J5: =B5-F5 -> 0
A6: 2 | I6: =IF(H6="","",TEXT(H6,"ddd")) ->  | J6: =J5+B6-F6 -> 0
A7: 3 | E7: =IF(D7="","",TEXT(D7,"ddd")) ->  | J7: =J6+B7-F7 -> 0
A8: 4 | J8: 0
A9: 5 | J9: 0
A10: 6 | J10: 0
A11: 7 | J11: 0
A12: 8 | J12: 0
A13: 9 | J13: 0
A14: 10 | J14: 0
A15: 11 | J15: 0
A16: 12 | J16: 0
A17: 13 | J17: 0
A18: 14 | J18: 0
A19: 15 | J19: 0
A20: 16 | J20: 0
A21: 17 | J21: 0
A22: 18 | J22: 0
A23: 19 | J23: 0
A24: 20 | J24: 0
A25: 21 | J25: 0
A26: 22 | J26: 0
A27: 23 | J27: 0
A28: 24 | J28: 0
A29: 25 | J29: 0
A30: 26 | J30: 0
A31: 27 | J31: 0
A32: 28 | J32: 0
A33: 29 | J33: 0
A34: 30 | J34: 0

Sheet الحاج ابراهيم عيسى
A1: اسم العميل | C1: الحاج ابراهيم عيسى | G1: الرصيد الحالى | H1: =J34 -> 0
A3: م | B3: مسحوبـــــــــــات | F3: تنزيـــــــــــــــــــــــــلات | J3: الرصيد
B4: المبلغ | C4: البيان | D4: التاريخ | E4: اليوم | F4: المبلغ | G4: البيان | H4: التاريخ | I4: اليوم
A5: 1 | E5: =IF(D5="","",TEXT(D5,"ddd")) ->  | I5: =IF(H5="","",TEXT(H5,"ddd")) ->  | J5: =B5-F5 -> 0
A6: 2 | I6: =IF(H6="","",TEXT(H6,"ddd")) ->  | J6: =J5+B6-F6 -> 0
A7: 3 | E7: =IF(D7="","",TEXT(D7,"ddd")) ->  | J7: =J6+B7-F7 -> 0
A8: 4 | J8: 0
A9: 5 | J9: 0
A10: 6 | J10: 0
A11: 7 | J11: 0
A12: 8 | J12: 0
A13: 9 | J13: 0
A14: 10 | J14: 0
A15: 11 | J15: 0
A16: 12 | J16: 0
A17: 13 | J17: 0
A18: 14 | J18: 0
A19: 15 | J19: 0
A20: 16 | J20: 0
A21: 17 | J21: 0
A22: 18 | J22: 0
A23: 19 | J23: 0
A24: 20 | J24: 0
A25: 21 | J25: 0
A26: 22 | J26: 0
A27: 23 | J27: 0
A28: 24 | J28: 0
A29: 25 | J29: 0
A30: 26 | J30: 0
A31: 27 | J31: 0
A32: 28 | J32: 0
A33: 29 | J33: 0
A34: 30 | J34: 0

Sheet وليد محمود
A1: اسم العميل | C1: وليد محمود | G1: الرصيد الحالى | H1: =J34 -> 0
A3: م | B3: مسحوبـــــــــــات | F3: تنزيـــــــــــــــــــــــــلات | J3: الرصيد
B4: المبلغ | C4: البيان | D4: التاريخ | E4: اليوم | F4: المبلغ | G4: البيان | H4: التاريخ | I4: اليوم
A5: 1 | E5: =IF(D5="","",TEXT(D5,"ddd")) ->  | I5: =IF(H5="","",TEXT(H5,"ddd")) ->  | J5: =B5-F5 -> 0
A6: 2 | I6: =IF(H6="","",TEXT(H6,"ddd")) ->  | J6: =J5+B6-F6 -> 0
A7: 3 | E7: =IF(D7="","",TEXT(D7,"ddd")) ->  | J7: =J6+B7-F7 -> 0
A8: 4 | J8: 0
A9: 5 | J9: 0
A10: 6 | J10: 0
A11: 7 | J11: 0
A12: 8 | J12: 0
A13: 9 | J13: 0
A14: 10 | J14: 0
A15: 11 | J15: 0
A16: 12 | J16: 0
A17: 13 | J17: 0
A18: 14 | J18: 0
A19: 15 | J19: 0
A20: 16 | J20: 0
A21: 17 | J21: 0
A22: 18 | J22: 0
A23: 19 | J23: 0
A24: 20 | J24: 0
A25: 21 | J25: 0
A26: 22 | J26: 0
A27: 23 | J27: 0
A28: 24 | J28: 0
A29: 25 | J29: 0
A30: 26 | J30: 0
A31: 27 | J31: 0
A32: 28 | J32: 0
A33: 29 | J33: 0
A34: 30 | J34: 0

Sheet مرات بليغ عبد الله
A1: اسم العميل | C1: مرات بليغ عبد الله | G1: الرصيد الحالى | H1: =J34 -> 0
A3: م | B3: مسحوبـــــــــــات | F3: تنزيـــــــــــــــــــــــــلات | J3: الرصيد
B4: المبلغ | C4: البيان | D4: التاريخ | E4: اليوم | F4: المبلغ | G4: البيان | H4: التاريخ | I4: اليوم
A5: 1 | E5: =IF(D5="","",TEXT(D5,"ddd")) ->  | I5: =IF(H5="","",TEXT(H5,"ddd")) ->  | J5: =B5-F5 -> 0
A6: 2 | I6: =IF(H6="","",TEXT(H6,"ddd")) ->  | J6: =J5+B6-F6 -> 0
A7: 3 | E7: =IF(D7="","",TEXT(D7,"ddd")) ->  | J7: =J6+B7-F7 -> 0
A8: 4 | J8: 0
A9: 5 | J9: 0
A10: 6 | J10: 0
A11: 7 | J11: 0
A12: 8 | J12: 0
A13: 9 | J13: 0
A14: 10 | J14: 0
A15: 11 | J15: 0
A16: 12 | J16: 0
A17: 13 | J17: 0
A18: 14 | J18: 0
A19: 15 | J19: 0
A20: 16 | J20: 0
A21: 17 | J21: 0
A22: 18 | J22: 0
A23: 19 | J23: 0
A24: 20 | J24: 0
A25: 21 | J25: 0
A26: 22 | J26: 0
A27: 23 | J27: 0
A28: 24 | J28: 0
A29: 25 | J29: 0
A30: 26 | J30: 0
A31: 27 | J31: 0
A32: 28 | J32: 0
A33: 29 | J33: 0
A34: 30 | J34: 0

Sheet الشيخ ربيع ابراهيم حمودة
A1: اسم العميل | C1: الشيخ ربيع ابراهيم حمودة | G1: الرصيد الحالى | H1: =J34 -> 0
A3: م | B3: مسحوبـــــــــــات | F3: تنزيـــــــــــــــــــــــــلات | J3: الرصيد
B4: المبلغ | C4: البيان | D4: التاريخ | E4: اليوم | F4: المبلغ | G4: البيان | H4: التاريخ | I4: اليوم
A5: 1 | E5: =IF(D5="","",TEXT(D5,"ddd")) ->  | I5: =IF(H5="","",TEXT(H5,"ddd")) ->  | J5: =B5-F5 -> 0
A6: 2 | I6: =IF(H6="","",TEXT(H6,"ddd")) ->  | J6: =J5+B6-F6 -> 0
A7: 3 | E7: =IF(D7="","",TEXT(D7,"ddd")) ->  | J7: =J6+B7-F7 -> 0
A8: 4 | J8: 0
A9: 5 | J9: 0
A10: 6 | J10: 0
A11: 7 | J11: 0
A12: 8 | J12: 0
A13: 9 | J13: 0
A14: 10 | J14: 0
A15: 11 | J15: 0
A16: 12 | J16: 0
A17: 13 | J17: 0
A18: 14 | J18: 0
A19: 15 | J19: 0
A20: 16 | J20: 0
A21: 17 | J21: 0
A22: 18 | J22: 0
A23: 19 | J23: 0
A24: 20 | J24: 0
A25: 21 | J25: 0
A26: 22 | J26: 0
A27: 23 | J27: 0
A28: 24 | J28: 0
A29: 25 | J29: 0
A30: 26 | J30: 0
A31: 27 | J31: 0
A32: 28 | J32: 0
A33: 29 | J33: 0
A34: 30 | J34: 0

Sheet كرامات
A1: اسم العميل | C1: كرامات | G1: الرصيد الحالى | H1: =J34 -> 0
A3: م | B3: مسحوبـــــــــــات | F3: تنزيـــــــــــــــــــــــــلات | J3: الرصيد
B4: المبلغ | C4: البيان | D4: التاريخ | E4: اليوم | F4: المبلغ | G4: البيان | H4: التاريخ | I4: اليوم
A5: 1 | E5: =IF(D5="","",TEXT(D5,"ddd")) ->  | I5: =IF(H5="","",TEXT(H5,"ddd")) ->  | J5: =B5-F5 -> 0
A6: 2 | I6: =IF(H6="","",TEXT(H6,"ddd")) ->  | J6: =J5+B6-F6 -> 0
A7: 3 | E7: =IF(D7="","",TEXT(D7,"ddd")) ->  | J7: =J6+B7-F7 -> 0
A8: 4 | J8: 0
A9: 5 | J9: 0
A10: 6 | J10: 0
A11: 7 | J11: 0
A12: 8 | J12: 0
A13: 9 | J13: 0
A14: 10 | J14: 0
A15: 11 | J15: 0
A16: 12 | J16: 0
A17: 13 | J17: 0
A18: 14 | J18: 0
A19: 15 | J19: 0
A20: 16 | J20: 0
A21: 17 | J21: 0
A22: 18 | J22: 0
A23: 19 | J23: 0
A24: 20 | J24: 0
A25: 21 | J25: 0
A26: 22 | J26: 0
A27: 23 | J27: 0
A28: 24 | J28: 0
A29: 25 | J29: 0
A30: 26 | J30: 0
A31: 27 | J31: 0
A32: 28 | J32: 0
A33: 29 | J33: 0
A34: 30 | J34: 0

Sheet ام عمارمرات الشيخ عثمان
A1: اسم العميل | C1: ام عمارمرات الشيخ عثمان | G1: الرصيد الحالى | H1: =J34 -> 0
A3: م | B3: مسحوبـــــــــــات | F3: تنزيـــــــــــــــــــــــــلات | J3: الرصيد
B4: المبلغ | C4: البيان | D4: التاريخ | E4: اليوم | F4: المبلغ | G4: البيان | H4: التاريخ | I4: اليوم
A5: 1 | E5: =IF(D5="","",TEXT(D5,"ddd")) ->  | I5: =IF(H5="","",TEXT(H5,"ddd")) ->  | J5: =B5-F5 -> 0
A6: 2 | I6: =IF(H6="","",TEXT(H6,"ddd")) ->  | J6: =J5+B6-F6 -> 0
A7: 3 | E7: =IF(D7="","",TEXT(D7,"ddd")) ->  | J7: =J6+B7-F7 -> 0
A8: 4 | J8: 0
A9: 5 | J9: 0
A10: 6 | J10: 0
A11: 7 | J11: 0
A12: 8 | J12: 0
A13: 9 | J13: 0
A14: 10 | J14: 0
A15: 11 | J15: 0
A16: 12 | J16: 0
A17: 13 | J17: 0
A18: 14 | J18: 0
A19: 15 | J19: 0
A20: 16 | J20: 0
A21: 17 | J21: 0
A22: 18 | J22: 0
A23: 19 | J23: 0
A24: 20 | J24: 0
A25: 21 | J25: 0
A26: 22 | J26: 0
A27: 23 | J27: 0
A28: 24 | J28: 0
A29: 25 | J29: 0
A30: 26 | J30: 0
A31: 27 | J31: 0
A32: 28 | J32: 0
A33: 29 | J33: 0
A34: 30 | J34: 0

Sheet الشيخ خلف محروس
A1: اسم العميل | C1: الشيخ خلف محروس | G1: الرصيد الحالى | H1: =J34 -> 0
A3: م | B3: مسحوبـــــــــــات | F3: تنزيـــــــــــــــــــــــــلات | J3: الرصيد
B4: المبلغ | C4: البيان | D4: التاريخ | E4: اليوم | F4: المبلغ | G4: البيان | H4: التاريخ | I4: اليوم
A5: 1 | E5: =IF(D5="","",TEXT(D5,"ddd")) ->  | I5: =IF(H5="","",TEXT(H5,"ddd")) ->  | J5: =B5-F5 -> 0
A6: 2 | I6: =IF(H6="","",TEXT(H6,"ddd")) ->  | J6: =J5+B6-F6 -> 0
A7: 3 | E7: =IF(D7="","",TEXT(D7,"ddd")) ->  | J7: =J6+B7-F7 -> 0
A8: 4 | J8: 0
A9: 5 | J9: 0
A10: 6 | J10: 0
A11: 7 | J11: 0
A12: 8 | J12: 0
A13: 9 | J13: 0
A14: 10 | J14: 0
A15: 11 | J15: 0
A16: 12 | J16: 0
A17: 13 | J17: 0
A18: 14 | J18: 0
A19: 15 | J19: 0
A20: 16 | J20: 0
A21: 17 | J21: 0
A22: 18 | J22: 0
A23: 19 | J23: 0
A24: 20 | J24: 0
A25: 21 | J25: 0
A26: 22 | J26: 0
A27: 23 | J27: 0
A28: 24 | J28: 0
A29: 25 | J29: 0
A30: 26 | J30: 0
A31: 27 | J31: 0
A32: 28 | J32: 0
A33: 29 | J33: 0
A34: 30 | J34: 0

Sheet ام احمد نافع
A1: اسم العميل | C1: ام احمد نافع | G1: الرصيد الحالى | H1: =J34 -> 0
A3: م | B3: مسحوبـــــــــــات | F3: تنزيـــــــــــــــــــــــــلات | J3: الرصيد
B4: المبلغ | C4: البيان | D4: التاريخ | E4: اليوم | F4: المبلغ | G4: البيان | H4: التاريخ | I4: اليوم
A5: 1 | E5: =IF(D5="","",TEXT(D5,"ddd")) ->  | I5: =IF(H5="","",TEXT(H5,"ddd")) ->  | J5: =B5-F5 -> 0
A6: 2 | I6: =IF(H6="","",TEXT(H6,"ddd")) ->  | J6: =J5+B6-F6 -> 0
A7: 3 | E7: =IF(D7="","",TEXT(D7,"ddd")) ->  | J7: =J6+B7-F7 -> 0
A8: 4 | J8: 0
A9: 5 | J9: 0
A10: 6 | J10: 0
A11: 7 | J11: 0
A12: 8 | J12: 0
A13: 9 | J13: 0
A14: 10 | J14: 0
A15: 11 | J15: 0
A16: 12 | J16: 0
A17: 13 | J17: 0
A18: 14 | J18: 0
A19: 15 | J19: 0
A20: 16 | J20: 0
A21: 17 | J21: 0
A22: 18 | J22: 0
A23: 19 | J23: 0
A24: 20 | J24: 0
A25: 21 | J25: 0
A26: 22 | J26: 0
A27: 23 | J27: 0
A28: 24 | J28: 0
A29: 25 | J29: 0
A30: 26 | J30: 0
A31: 27 | J31: 0
A32: 28 | J32: 0
A33: 29 | J33: 0
A34: 30 | J34: 0

Sheet محمود امين عبد الحفيظ
A1: اسم العميل | C1: محمود امين عبد الحفيظ | G1: الرصيد الحالى | H1: =J34 -> 0
A3: م | B3: مسحوبـــــــــــات | F3: تنزيـــــــــــــــــــــــــلات | J3: الرصيد
B4: المبلغ | C4: البيان | D4: التاريخ | E4: اليوم | F4: المبلغ | G4: البيان | H4: التاريخ | I4: اليوم
A5: 1 | E5: =IF(D5="","",TEXT(D5,"ddd")) ->  | I5: =IF(H5="","",TEXT(H5,"ddd")) ->  | J5: =B5-F5 -> 0
A6: 2 | I6: =IF(H6="","",TEXT(H6,"ddd")) ->  | J6: =J5+B6-F6 -> 0
A7: 3 | E7: =IF(D7="","",TEXT(D7,"ddd")) ->  | J7: =J6+B7-F7 -> 0
A8: 4 | J8: 0
A9: 5 | J9: 0
A10: 6 | J10: 0
A11: 7 | J11: 0
A12: 8 | J12: 0
A13: 9 | J13: 0
A14: 10 | J14: 0
A15: 11 | J15: 0
A16: 12 | J16: 0
A17: 13 | J17: 0
A18: 14 | J18: 0
A19: 15 | J19: 0
A20: 16 | J20: 0
A21: 17 | J21: 0
A22: 18 | J22: 0
A23: 19 | J23: 0
A24: 20 | J24: 0
A25: 21 | J25: 0
A26: 22 | J26: 0
A27: 23 | J27: 0
A28: 24 | J28: 0
A29: 25 | J29: 0
A30: 26 | J30: 0
A31: 27 | J31: 0
A32: 28 | J32: 0
A33: 29 | J33: 0
A34: 30 | J34: 0

Sheet مرات سيف معتمد
A1: اسم العميل | C1: مرات سيف معتمد | G1: الرصيد الحالى | H1: =J34 -> 0
A3: م | B3: مسحوبـــــــــــات | F3: تنزيـــــــــــــــــــــــــلات | J3: الرصيد
B4: المبلغ | C4: البيان | D4: التاريخ | E4: اليوم | F4: المبلغ | G4: البيان | H4: التاريخ | I4: اليوم
A5: 1 | E5: =IF(D5="","",TEXT(D5,"ddd")) ->  | I5: =IF(H5="","",TEXT(H5,"ddd")) ->  | J5: =B5-F5 -> 0
A6: 2 | I6: =IF(H6="","",TEXT(H6,"ddd")) ->  | J6: =J5+B6-F6 -> 0
A7: 3 | E7: =IF(D7="","",TEXT(D7,"ddd")) ->  | J7: =J6+B7-F7 -> 0
A8: 4 | J8: 0
A9: 5 | J9: 0
A10: 6 | J10: 0
A11: 7 | J11: 0
A12: 8 | J12: 0
A13: 9 | J13: 0
A14: 10 | J14: 0
A15: 11 | J15: 0
A16: 12 | J16: 0
A17: 13 | J17: 0
A18: 14 | J18: 0
A19: 15 | J19: 0
A20: 16 | J20: 0
A21: 17 | J21: 0
A22: 18 | J22: 0
A23: 19 | J23: 0
A24: 20 | J24: 0
A25: 21 | J25: 0
A26: 22 | J26: 0
A27: 23 | J27: 0
A28: 24 | J28: 0
A29: 25 | J29: 0
A30: 26 | J30: 0
A31: 27 | J31: 0
A32: 28 | J32: 0
A33: 29 | J33: 0
A34: 30 | J34: 0

Sheet محمد خميس
A1: اسم العميل | C1: محمد خميس | G1: الرصيد الحالى | H1: =J34 -> 0
A3: م | B3: مسحوبـــــــــــات | F3: تنزيـــــــــــــــــــــــــلات | J3: الرصيد
B4: المبلغ | C4: البيان | D4: التاريخ | E4: اليوم | F4: المبلغ | G4: البيان | H4: التاريخ | I4: اليوم
A5: 1 | E5: =IF(D5="","",TEXT(D5,"ddd")) ->  | I5: =IF(H5="","",TEXT(H5,"ddd")) ->  | J5: =B5-F5 -> 0
A6: 2 | I6: =IF(H6="","",TEXT(H6,"ddd")) ->  | J6: =J5+B6-F6 -> 0
A7: 3 | E7: =IF(D7="","",TEXT(D7,"ddd")) ->  | J7: =J6+B7-F7 -> 0
A8: 4 | J8: 0
A9: 5 | J9: 0
A10: 6 | J10: 0
A11: 7 | J11: 0
A12: 8 | J12: 0
A13: 9 | J13: 0
A14: 10 | J14: 0
A15: 11 | J15: 0
A16: 12 | J16: 0
A17: 13 | J17: 0
A18: 14 | J18: 0
A19: 15 | J19: 0
A20: 16 | J20: 0
A21: 17 | J21: 0
A22: 18 | J22: 0
A23: 19 | J23: 0
A24: 20 | J24: 0
A25: 21 | J25: 0
A26: 22 | J26: 0
A27: 23 | J27: 0
A28: 24 | J28: 0
A29: 25 | J29: 0
A30: 26 | J30: 0
A31: 27 | J31: 0
A32: 28 | J32: 0
A33: 29 | J33: 0
A34: 30 | J34: 0

Sheet شيماء جمعه
A1: اسم العميل | C1: شيماء جمعه | G1: الرصيد الحالى | H1: =J34 -> 0
A3: م | B3: مسحوبـــــــــــات | F3: تنزيـــــــــــــــــــــــــلات | J3: الرصيد
B4: المبلغ | C4: البيان | D4: التاريخ | E4: اليوم | F4: المبلغ | G4: البيان | H4: التاريخ | I4: اليوم
A5: 1 | E5: =IF(D5="","",TEXT(D5,"ddd")) ->  | I5: =IF(H5="","",TEXT(H5,"ddd")) ->  | J5: =B5-F5 -> 0
A6: 2 | I6: =IF(H6="","",TEXT(H6,"ddd")) ->  | J6: =J5+B6-F6 -> 0
A7: 3 | E7: =IF(D7="","",TEXT(D7,"ddd")) ->  | J7: =J6+B7-F7 -> 0
A8: 4 | J8: 0
A9: 5 | J9: 0
A10: 6 | J10: 0
A11: 7 | J11: 0
A12: 8 | J12: 0
A13: 9 | J13: 0
A14: 10 | J14: 0
A15: 11 | J15: 0
A16: 12 | J16: 0
A17: 13 | J17: 0
A18: 14 | J18: 0
A19: 15 | J19: 0
A20: 16 | J20: 0
A21: 17 | J21: 0
A22: 18 | J22: 0
A23: 19 | J23: 0
A24: 20 | J24: 0
A25: 21 | J25: 0
A26: 22 | J26: 0
A27: 23 | J27: 0
A28: 24 | J28: 0
A29: 25 | J29: 0
A30: 26 | J30: 0
A31: 27 | J31: 0
A32: 28 | J32: 0
A33: 29 | J33: 0
A34: 30 | J34: 0

Sheet مرات احمد محمد احمد الجزار
A1: اسم العميل | C1: مرات احمد محمد احمد الجزار | G1: الرصيد الحالى | H1: =J34 -> 0
A3: م | B3: مسحوبـــــــــــات | F3: تنزيـــــــــــــــــــــــــلات | J3: الرصيد
B4: المبلغ | C4: البيان | D4: التاريخ | E4: اليوم | F4: المبلغ | G4: البيان | H4: التاريخ | I4: اليوم
A5: 1 | E5: =IF(D5="","",TEXT(D5,"ddd")) ->  | I5: =IF(H5="","",TEXT(H5,"ddd")) ->  | J5: =B5-F5 -> 0
A6: 2 | I6: =IF(H6="","",TEXT(H6,"ddd")) ->  | J6: =J5+B6-F6 -> 0
A7: 3 | E7: =IF(D7="","",TEXT(D7,"ddd")) ->  | J7: =J6+B7-F7 -> 0
A8: 4 | J8: 0
A9: 5 | J9: 0
A10: 6 | J10: 0
A11: 7 | J11: 0
A12: 8 | J12: 0
A13: 9 | J13: 0
A14: 10 | J14: 0
A15: 11 | J15: 0
A16: 12 | J16: 0
A17: 13 | J17: 0
A18: 14 | J18: 0
A19: 15 | J19: 0
A20: 16 | J20: 0
A21: 17 | J21: 0
A22: 18 | J22: 0
A23: 19 | J23: 0
A24: 20 | J24: 0
A25: 21 | J25: 0
A26: 22 | J26: 0
A27: 23 | J27: 0
A28: 24 | J28: 0
A29: 25 | J29: 0
A30: 26 | J30: 0
A31: 27 | J31: 0
A32: 28 | J32: 0
A33: 29 | J33: 0
A34: 30 | J34: 0

Sheet حسام النجار
A1: اسم العميل | C1: حسام النجار | G1: الرصيد الحالى | H1: =J34 -> 0
A3: م | B3: مسحوبـــــــــــات | F3: تنزيـــــــــــــــــــــــــلات | J3: الرصيد
B4: المبلغ | C4: البيان | D4: التاريخ | E4: اليوم | F4: المبلغ | G4: البيان | H4: التاريخ | I4: اليوم
A5: 1 | D5: 2023-01-01 | E5: =IF(D5="","",TEXT(D5,"ddd")) -> الأحد | I5: =IF(H5="","",TEXT(H5,"ddd")) ->  | J5: =B5-F5 -> 0
A6: 2 | E6: =IF(D6="","",TEXT(D6,"ddd")) ->  | I6: =IF(H6="","",TEXT(H6,"ddd")) ->  | J6: =J5+B6-F6 -> 0
A7: 3 | J7: =J6+B7-F7 -> 0
A8: 4 | J8: 0
A9: 5 | J9: 0
A10: 6 | J10: 0
A11: 7 | J11: 0
A12: 8 | J12: 0
A13: 9 | J13: 0
A14: 10 | J14: 0
A15: 11 | J15: 0
A16: 12 | J16: 0
A17: 13 | J17: 0
A18: 14 | J18: 0
A19: 15 | J19: 0
A20: 16 | J20: 0
A21: 17 | J21: 0
A22: 18 | J22: 0
A23: 19 | J23: 0
A24: 20 | J24: 0
A25: 21 | J25: 0
A26: 22 | J26: 0
A27: 23 | J27: 0
A28: 24 | J28: 0
A29: 25 | J29: 0
A30: 26 | J30: 0
A31: 27 | J31: 0
A32: 28 | J32: 0
A33: 29 | J33: 0
A34: 30 | J34: 0

Sheet خليفه كبدة
A1: اسم العميل | C1: خليفه كبدة | G1: الرصيد الحالى | H1: =J34 -> 0
A3: م | B3: مسحوبـــــــــــات | F3: تنزيـــــــــــــــــــــــــلات | J3: الرصيد
B4: المبلغ | C4: البيان | D4: التاريخ | E4: اليوم | F4: المبلغ | G4: البيان | H4: التاريخ | I4: اليوم
A5: 1 | D5: 2023-01-01 | E5: =IF(D5="","",TEXT(D5,"ddd")) -> الأحد | I5: =IF(H5="","",TEXT(H5,"ddd")) ->  | J5: =B5-F5 -> 0
A6: 2 | E6: =IF(D6="","",TEXT(D6,"ddd")) ->  | I6: =IF(H6="","",TEXT(H6,"ddd")) ->  | J6: =J5+B6-F6 -> 0
A7: 3 | J7: =J6+B7-F7 -> 0
A8: 4 | J8: 0
A9: 5 | J9: 0
A10: 6 | J10: 0
A11: 7 | J11: 0
A12: 8 | J12: 0
A13: 9 | J13: 0
A14: 10 | J14: 0
A15: 11 | J15: 0
A16: 12 | J16: 0
A17: 13 | J17: 0
A18: 14 | J18: 0
A19: 15 | J19: 0
A20: 16 | J20: 0
A21: 17 | J21: 0
A22: 18 | J22: 0
A23: 19 | J23: 0
A24: 20 | J24: 0
A25: 21 | J25: 0
A26: 22 | J26: 0
A27: 23 | J27: 0
A28: 24 | J28: 0
A29: 25 | J29: 0
A30: 26 | J30: 0
A31: 27 | J31: 0
A32: 28 | J32: 0
A33: 29 | J33: 0
A34: 30 | J34: 0

Sheet رقيه عونى
A1: اسم العميل | C1: رقيه عونى | G1: الرصيد الحالى | H1: =J34 -> 0
A3: م | B3: مسحوبـــــــــــات | F3: تنزيـــــــــــــــــــــــــلات | J3: الرصيد
B4: المبلغ | C4: البيان | D4: التاريخ | E4: اليوم | F4: المبلغ | G4: البيان | H4: التاريخ | I4: اليوم
A5: 1 | D5: 2023-01-01 | E5: =IF(D5="","",TEXT(D5,"ddd")) -> الأحد | I5: =IF(H5="","",TEXT(H5,"ddd")) ->  | J5: =B5-F5 -> 0
A6: 2 | E6: =IF(D6="","",TEXT(D6,"ddd")) ->  | I6: =IF(H6="","",TEXT(H6,"ddd")) ->  | J6: =J5+B6-F6 -> 0
A7: 3 | J7: =J6+B7-F7 -> 0
A8: 4 | J8: 0
A9: 5 | J9: 0
A10: 6 | J10: 0
A11: 7 | J11: 0
A12: 8 | J12: 0
A13: 9 | J13: 0
A14: 10 | J14: 0
A15: 11 | J15: 0
A16: 12 | J16: 0
A17: 13 | J17: 0
A18: 14 | J18: 0
A19: 15 | J19: 0
A20: 16 | J20: 0
A21: 17 | J21: 0
A22: 18 | J22: 0
A23: 19 | J23: 0
A24: 20 | J24: 0
A25: 21 | J25: 0
A26: 22 | J26: 0
A27: 23 | J27: 0
A28: 24 | J28: 0
A29: 25 | J29: 0
A30: 26 | J30: 0
A31: 27 | J31: 0
A32: 28 | J32: 0
A33: 29 | J33: 0
A34: 30 | J34: 0

Sheet عرفه رجب فارس
A1: اسم العميل | C1: عرفه رجب فارس | G1: الرصيد الحالى | H1: =J34 -> 0
A3: م | B3: مسحوبـــــــــــات | F3: تنزيـــــــــــــــــــــــــلات | J3: الرصيد
B4: المبلغ | C4: البيان | D4: التاريخ | E4: اليوم | F4: المبلغ | G4: البيان | H4: التاريخ | I4: اليوم
A5: 1 | D5: 2023-01-01 | E5: =IF(D5="","",TEXT(D5,"ddd")) -> الأحد | I5: =IF(H5="","",TEXT(H5,"ddd")) ->  | J5: =B5-F5 -> 0
A6: 2 | E6: =IF(D6="","",TEXT(D6,"ddd")) ->  | I6: =IF(H6="","",TEXT(H6,"ddd")) ->  | J6: =J5+B6-F6 -> 0
A7: 3 | J7: =J6+B7-F7 -> 0
A8: 4 | J8: 0
A9: 5 | J9: 0
A10: 6 | J10: 0
A11: 7 | J11: 0
A12: 8 | J12: 0
A13: 9 | J13: 0
A14: 10 | J14: 0
A15: 11 | J15: 0
A16: 12 | J16: 0
A17: 13 | J17: 0
A18: 14 | J18: 0
A19: 15 | J19: 0
A20: 16 | J20: 0
A21: 17 | J21: 0
A22: 18 | J22: 0
A23: 19 | J23: 0
A24: 20 | J24: 0
A25: 21 | J25: 0
A26: 22 | J26: 0
A27: 23 | J27: 0
A28: 24 | J28: 0
A29: 25 | J29: 0
A30: 26 | J30: 0
A31: 27 | J31: 0
A32: 28 | J32: 0
A33: 29 | J33: 0
A34: 30 | J34: 0

Sheet ناجى محمد على
A1: اسم العميل | C1: ناجى محمد على | G1: الرصيد الحالى | H1: =J34 -> 0
A3: م | B3: مسحوبـــــــــــات | F3: تنزيـــــــــــــــــــــــــلات | J3: الرصيد
B4: المبلغ | C4: البيان | D4: التاريخ | E4: اليوم | F4: المبلغ | G4: البيان | H4: التاريخ | I4: اليوم
A5: 1 | D5: 2023-01-01 | E5: =IF(D5="","",TEXT(D5,"ddd")) -> الأحد | I5: =IF(H5="","",TEXT(H5,"ddd")) ->  | J5: =B5-F5 -> 0
A6: 2 | E6: =IF(D6="","",TEXT(D6,"ddd")) ->  | I6: =IF(H6="","",TEXT(H6,"ddd")) ->  | J6: =J5+B6-F6 -> 0
A7: 3 | J7: =J6+B7-F7 -> 0
A8: 4 | J8: 0
A9: 5 | J9: 0
A10: 6 | J10: 0
A11: 7 | J11: 0
A12: 8 | J12: 0
A13: 9 | J13: 0
A14: 10 | J14: 0
A15: 11 | J15: 0
A16: 12 | J16: 0
A17: 13 | J17: 0
A18: 14 | J18: 0
A19: 15 | J19: 0
A20: 16 | J20: 0
A21: 17 | J21: 0
A22: 18 | J22: 0
A23: 19 | J23: 0
A24: 20 | J24: 0
A25: 21 | J25: 0
A26: 22 | J26: 0
A27: 23 | J27: 0
A28: 24 | J28: 0
A29: 25 | J29: 0
A30: 26 | J30: 0
A31: 27 | J31: 0
A32: 28 | J32: 0
A33: 29 | J33: 0
A34: 30 | J34: 0

Sheet رضا محمود عبد الفتاح
A1: اسم العميل | C1: رضا محمود عبد الفتاح | G1: الرصيد الحالى | H1: =J34 -> 0
A3: م | B3: مسحوبـــــــــــات | F3: تنزيـــــــــــــــــــــــــلات | J3: الرصيد
B4: المبلغ | C4: البيان | D4: التاريخ | E4: اليوم | F4: المبلغ | G4: البيان | H4: التاريخ | I4: اليوم
A5: 1 | D5: 2023-01-01 | E5: =IF(D5="","",TEXT(D5,"ddd")) -> الأحد | I5: =IF(H5="","",TEXT(H5,"ddd")) ->  | J5: =B5-F5 -> 0
A6: 2 | E6: =IF(D6="","",TEXT(D6,"ddd")) ->  | I6: =IF(H6="","",TEXT(H6,"ddd")) ->  | J6: =J5+B6-F6 -> 0
A7: 3 | J7: =J6+B7-F7 -> 0
A8: 4 | J8: 0
A9: 5 | J9: 0
A10: 6 | J10: 0
A11: 7 | J11: 0
A12: 8 | J12: 0
A13: 9 | J13: 0
A14: 10 | J14: 0
A15: 11 | J15: 0
A16: 12 | J16: 0
A17: 13 | J17: 0
A18: 14 | J18: 0
A19: 15 | J19: 0
A20: 16 | J20: 0
A21: 17 | J21: 0
A22: 18 | J22: 0
A23: 19 | J23: 0
A24: 20 | J24: 0
A25: 21 | J25: 0
A26: 22 | J26: 0
A27: 23 | J27: 0
A28: 24 | J28: 0
A29: 25 | J29: 0
A30: 26 | J30: 0
A31: 27 | J31: 0
A32: 28 | J32: 0
A33: 29 | J33: 0
A34: 30 | J34: 0

Sheet محمد ابراهيم عمر
A1: اسم العميل | C1: محمد ابراهيم عمر | G1: الرصيد الحالى | H1: =J34 -> 0
A3: م | B3: مسحوبـــــــــــات | F3: تنزيـــــــــــــــــــــــــلات | J3: الرصيد
B4: المبلغ | C4: البيان | D4: التاريخ | E4: اليوم | F4: المبلغ | G4: البيان | H4: التاريخ | I4: اليوم
A5: 1 | D5: 2023-01-01 | E5: =IF(D5="","",TEXT(D5,"ddd")) -> الأحد | I5: =IF(H5="","",TEXT(H5,"ddd")) ->  | J5: =B5-F5 -> 0
A6: 2 | E6: =IF(D6="","",TEXT(D6,"ddd")) ->  | I6: =IF(H6="","",TEXT(H6,"ddd")) ->  | J6: =J5+B6-F6 -> 0
A7: 3 | J7: =J6+B7-F7 -> 0
A8: 4 | J8: 0
A9: 5 | J9: 0
A10: 6 | J10: 0
A11: 7 | J11: 0
A12: 8 | J12: 0
A13: 9 | J13: 0
A14: 10 | J14: 0
A15: 11 | J15: 0
A16: 12 | J16: 0
A17: 13 | J17: 0
A18: 14 | J18: 0
A19: 15 | J19: 0
A20: 16 | J20: 0
A21: 17 | J21: 0
A22: 18 | J22: 0
A23: 19 | J23: 0
A24: 20 | J24: 0
A25: 21 | J25: 0
A26: 22 | J26: 0
A27: 23 | J27: 0
A28: 24 | J28: 0
A29: 25 | J29: 0
A30: 26 | J30: 0
A31: 27 | J31: 0
A32: 28 | J32: 0
A33: 29 | J33: 0
A34: 30 | J34: 0

Sheet خيرى اسماعيل
A1: اسم العميل | C1: خيرى اسماعيل | G1: الرصيد الحالى | H1: =J34 -> 0
A3: م | B3: مسحوبـــــــــــات | F3: تنزيـــــــــــــــــــــــــلات | J3: الرصيد
B4: المبلغ | C4: البيان | D4: التاريخ | E4: اليوم | F4: المبلغ | G4: البيان | H4: التاريخ | I4: اليوم
A5: 1 | D5: 2023-01-01 | E5: =IF(D5="","",TEXT(D5,"ddd")) -> الأحد | I5: =IF(H5="","",TEXT(H5,"ddd")) ->  | J5: =B5-F5 -> 0
A6: 2 | E6: =IF(D6="","",TEXT(D6,"ddd")) ->  | I6: =IF(H6="","",TEXT(H6,"ddd")) ->  | J6: =J5+B6-F6 -> 0
A7: 3 | J7: =J6+B7-F7 -> 0
A8: 4 | J8: 0
A9: 5 | J9: 0
A10: 6 | J10: 0
A11: 7 | J11: 0
A12: 8 | J12: 0
A13: 9 | J13: 0
A14: 10 | J14: 0
A15: 11 | J15: 0
A16: 12 | J16: 0
A17: 13 | J17: 0
A18: 14 | J18: 0
A19: 15 | J19: 0
A20: 16 | J20: 0
A21: 17 | J21: 0
A22: 18 | J22: 0
A23: 19 | J23: 0
A24: 20 | J24: 0
A25: 21 | J25: 0
A26: 22 | J26: 0
A27: 23 | J27: 0
A28: 24 | J28: 0
A29: 25 | J29: 0
A30: 26 | J30: 0
A31: 27 | J31: 0
A32: 28 | J32: 0
A33: 29 | J33: 0
A34: 30 | J34: 0

Sheet ربيع محمود
A1: اسم العميل | C1: ربيع محمود | G1: الرصيد الحالى | H1: =J34 -> 0
A3: م | B3: مسحوبـــــــــــات | F3: تنزيـــــــــــــــــــــــــلات | J3: الرصيد
B4: المبلغ | C4: البيان | D4: التاريخ | E4: اليوم | F4: المبلغ | G4: البيان | H4: التاريخ | I4: اليوم
A5: 1 | D5: 2023-01-01 | E5: =IF(D5="","",TEXT(D5,"ddd")) -> الأحد | I5: =IF(H5="","",TEXT(H5,"ddd")) ->  | J5: =B5-F5 -> 0
A6: 2 | E6: =IF(D6="","",TEXT(D6,"ddd")) ->  | I6: =IF(H6="","",TEXT(H6,"ddd")) ->  | J6: =J5+B6-F6 -> 0
A7: 3 | J7: =J6+B7-F7 -> 0
A8: 4 | J8: 0
A9: 5 | J9: 0
A10: 6 | J10: 0
A11: 7 | J11: 0
A12: 8 | J12: 0
A13: 9 | J13: 0
A14: 10 | J14: 0
A15: 11 | J15: 0
A16: 12 | J16: 0
A17: 13 | J17: 0
A18: 14 | J18: 0
A19: 15 | J19: 0
A20: 16 | J20: 0
A21: 17 | J21: 0
A22: 18 | J22: 0
A23: 19 | J23: 0
A24: 20 | J24: 0
A25: 21 | J25: 0
A26: 22 | J26: 0
A27: 23 | J27: 0
A28: 24 | J28: 0
A29: 25 | J29: 0
A30: 26 | J30: 0
A31: 27 | J31: 0
A32: 28 | J32: 0
A33: 29 | J33: 0
A34: 30 | J34: 0

Sheet مرات احمد خيرى
A1: اسم العميل | C1: مرات احمد خيرى | G1: الرصيد الحالى | H1: =J34 -> 0
A3: م | B3: مسحوبـــــــــــات | F3: تنزيـــــــــــــــــــــــــلات | J3: الرصيد
B4: المبلغ | C4: البيان | D4: التاريخ | E4: اليوم | F4: المبلغ | G4: البيان | H4: التاريخ | I4: اليوم
A5: 1 | D5: 2023-01-01 | E5: =IF(D5="","",TEXT(D5,"ddd")) -> الأحد | I5: =IF(H5="","",TEXT(H5,"ddd")) ->  | J5: =B5-F5 -> 0
A6: 2 | E6: =IF(D6="","",TEXT(D6,"ddd")) ->  | I6: =IF(H6="","",TEXT(H6,"ddd")) ->  | J6: =J5+B6-F6 -> 0
A7: 3 | J7: =J6+B7-F7 -> 0
A8: 4 | J8: 0
A9: 5 | J9: 0
A10: 6 | J10: 0
A11: 7 | J11: 0
A12: 8 | J12: 0
A13: 9 | J13: 0
A14: 10 | J14: 0
A15: 11 | J15: 0
A16: 12 | J16: 0
A17: 13 | J17: 0
A18: 14 | J18: 0
A19: 15 | J19: 0
A20: 16 | J20: 0
A21: 17 | J21: 0
A22: 18 | J22: 0
A23: 19 | J23: 0
A24: 20 | J24: 0
A25: 21 | J25: 0
A26: 22 | J26: 0
A27: 23 | J27: 0
A28: 24 | J28: 0
A29: 25 | J29: 0
A30: 26 | J30: 0
A31: 27 | J31: 0
A32: 28 | J32: 0
A33: 29 | J33: 0
A34: 30 | J34: 0

Sheet بثينه قياتى
A1: اسم العميل | C1: بثينه قياتى | G1: الرصيد الحالى | H1: =J34 -> 0
A3: م | B3: مسحوبـــــــــــات | F3: تنزيـــــــــــــــــــــــــلات | J3: الرصيد
B4: المبلغ | C4: البيان | D4: التاريخ | E4: اليوم | F4: المبلغ | G4: البيان | H4: التاريخ | I4: اليوم
A5: 1 | D5: 2023-01-01 | E5: =IF(D5="","",TEXT(D5,"ddd")) -> الأحد | I5: =IF(H5="","",TEXT(H5,"ddd")) ->  | J5: =B5-F5 -> 0
A6: 2 | E6: =IF(D6="","",TEXT(D6,"ddd")) ->  | I6: =IF(H6="","",TEXT(H6,"ddd")) ->  | J6: =J5+B6-F6 -> 0
A7: 3 | J7: =J6+B7-F7 -> 0
A8: 4 | J8: 0
A9: 5 | J9: 0
A10: 6 | J10: 0
A11: 7 | J11: 0
A12: 8 | J12: 0
A13: 9 | J13: 0
A14: 10 | J14: 0
A15: 11 | J15: 0
A16: 12 | J16: 0
A17: 13 | J17: 0
A18: 14 | J18: 0
A19: 15 | J19: 0
A20: 16 | J20: 0
A21: 17 | J21: 0
A22: 18 | J22: 0
A23: 19 | J23: 0
A24: 20 | J24: 0
A25: 21 | J25: 0
A26: 22 | J26: 0
A27: 23 | J27: 0
A28: 24 | J28: 0
A29: 25 | J29: 0
A30: 26 | J30: 0
A31: 27 | J31: 0
A32: 28 | J32: 0
A33: 29 | J33: 0
A34: 30 | J34: 0

Sheet اشرف عبد الرحمن
A1: اسم العميل | C1: اشرف عبد الرحمن | G1: الرصيد الحالى | H1: =J34 -> 0
A3: م | B3: مسحوبـــــــــــات | F3: تنزيـــــــــــــــــــــــــلات | J3: الرصيد
B4: المبلغ | C4: البيان | D4: التاريخ | E4: اليوم | F4: المبلغ | G4: البيان | H4: التاريخ | I4: اليوم
A5: 1 | D5: 2023-01-01 | E5: =IF(D5="","",TEXT(D5,"ddd")) -> الأحد | I5: =IF(H5="","",TEXT(H5,"ddd")) ->  | J5: =B5-F5 -> 0
A6: 2 | E6: =IF(D6="","",TEXT(D6,"ddd")) ->  | I6: =IF(H6="","",TEXT(H6,"ddd")) ->  | J6: =J5+B6-F6 -> 0
A7: 3 | J7: =J6+B7-F7 -> 0
A8: 4 | J8: 0
A9: 5 | J9: 0
A10: 6 | J10: 0
A11: 7 | J11: 0
A12: 8 | J12: 0
A13: 9 | J13: 0
A14: 10 | J14: 0
A15: 11 | J15: 0
A16: 12 | J16: 0
A17: 13 | J17: 0
A18: 14 | J18: 0
A19: 15 | J19: 0
A20: 16 | J20: 0
A21: 17 | J21: 0
A22: 18 | J22: 0
A23: 19 | J23: 0
A24: 20 | J24: 0
A25: 21 | J25: 0
A26: 22 | J26: 0
A27: 23 | J27: 0
A28: 24 | J28: 0
A29: 25 | J29: 0
A30: 26 | J30: 0
A31: 27 | J31: 0
A32: 28 | J32: 0
A33: 29 | J33: 0
A34: 30 | J34: 0

Sheet حسام الدكش
A1: اسم العميل | C1: حسام الدكش | G1: الرصيد الحالى | H1: =J34 -> 0
A3: م | B3: مسحوبـــــــــــات | F3: تنزيـــــــــــــــــــــــــلات | J3: الرصيد
B4: المبلغ | C4: البيان | D4: التاريخ | E4: اليوم | F4: المبلغ | G4: البيان | H4: التاريخ | I4: اليوم
A5: 1 | D5: 2023-01-01 | E5: =IF(D5="","",TEXT(D5,"ddd")) -> الأحد | I5: =IF(H5="","",TEXT(H5,"ddd")) ->  | J5: =B5-F5 -> 0
A6: 2 | E6: =IF(D6="","",TEXT(D6,"ddd")) ->  | I6: =IF(H6="","",TEXT(H6,"ddd")) ->  | J6: =J5+B6-F6 -> 0
A7: 3 | J7: =J6+B7-F7 -> 0
A8: 4 | J8: 0
A9: 5 | J9: 0
A10: 6 | J10: 0
A11: 7 | J11: 0
A12: 8 | J12: 0
A13: 9 | J13: 0
A14: 10 | J14: 0
A15: 11 | J15: 0
A16: 12 | J16: 0
A17: 13 | J17: 0
A18: 14 | J18: 0
A19: 15 | J19: 0
A20: 16 | J20: 0
A21: 17 | J21: 0
A22: 18 | J22: 0
A23: 19 | J23: 0
A24: 20 | J24: 0
A25: 21 | J25: 0
A26: 22 | J26: 0
A27: 23 | J27: 0
A28: 24 | J28: 0
A29: 25 | J29: 0
A30: 26 | J30: 0
A31: 27 | J31: 0
A32: 28 | J32: 0
A33: 29 | J33: 0
A34: 30 | J34: 0

Sheet محمد جمال عبد العليم
A1: اسم العميل | C1: محمد جمال عبد العليم | G1: الرصيد الحالى | H1: =J34 -> 0
A3: م | B3: مسحوبـــــــــــات | F3: تنزيـــــــــــــــــــــــــلات | J3: الرصيد
B4: المبلغ | C4: البيان | D4: التاريخ | E4: اليوم | F4: المبلغ | G4: البيان | H4: التاريخ | I4: اليوم
A5: 1 | D5: 2023-01-01 | E5: =IF(D5="","",TEXT(D5,"ddd")) -> الأحد | I5: =IF(H5="","",TEXT(H5,"ddd")) ->  | J5: =B5-F5 -> 0
A6: 2 | E6: =IF(D6="","",TEXT(D6,"ddd")) ->  | I6: =IF(H6="","",TEXT(H6,"ddd")) ->  | J6: =J5+B6-F6 -> 0
A7: 3 | J7: =J6+B7-F7 -> 0
A8: 4 | J8: 0
A9: 5 | J9: 0
A10: 6 | J10: 0
A11: 7 | J11: 0
A12: 8 | J12: 0
A13: 9 | J13: 0
A14: 10 | J14: 0
A15: 11 | J15: 0
A16: 12 | J16: 0
A17: 13 | J17: 0
A18: 14 | J18: 0
A19: 15 | J19: 0
A20: 16 | J20: 0
A21: 17 | J21: 0
A22: 18 | J22: 0
A23: 19 | J23: 0
A24: 20 | J24: 0
A25: 21 | J25: 0
A26: 22 | J26: 0
A27: 23 | J27: 0
A28: 24 | J28: 0
A29: 25 | J29: 0
A30: 26 | J30: 0
A31: 27 | J31: 0
A32: 28 | J32: 0
A33: 29 | J33: 0
A34: 30 | J34: 0

Sheet احمد الشيخ عيد
A1: اسم العميل | C1: احمد الشيخ عيد | G1: الرصيد الحالى | H1: =J34 -> 0
A3: م | B3: مسحوبـــــــــــات | F3: تنزيـــــــــــــــــــــــــلات | J3: الرصيد
B4: المبلغ | C4: البيان | D4: التاريخ | E4: اليوم | F4: المبلغ | G4: البيان | H4: التاريخ | I4: اليوم
A5: 1 | D5: 2023-01-01 | E5: =IF(D5="","",TEXT(D5,"ddd")) -> الأحد | I5: =IF(H5="","",TEXT(H5,"ddd")) ->  | J5: =B5-F5 -> 0
A6: 2 | E6: =IF(D6="","",TEXT(D6,"ddd")) ->  | I6: =IF(H6="","",TEXT(H6,"ddd")) ->  | J6: =J5+B6-F6 -> 0
A7: 3 | J7: =J6+B7-F7 -> 0
A8: 4 | J8: 0
A9: 5 | J9: 0
A10: 6 | J10: 0
A11: 7 | J11: 0
A12: 8 | J12: 0
A13: 9 | J13: 0
A14: 10 | J14: 0
A15: 11 | J15: 0
A16: 12 | J16: 0
A17: 13 | J17: 0
A18: 14 | J18: 0
A19: 15 | J19: 0
A20: 16 | J20: 0
A21: 17 | J21: 0
A22: 18 | J22: 0
A23: 19 | J23: 0
A24: 20 | J24: 0
A25: 21 | J25: 0
A26: 22 | J26: 0
A27: 23 | J27: 0
A28: 24 | J28: 0
A29: 25 | J29: 0
A30: 26 | J30: 0
A31: 27 | J31: 0
A32: 28 | J32: 0
A33: 29 | J33: 0
A34: 30 | J34: 0

Sheet محمود ممدوح
A1: اسم العميل | C1: محمود ممدوح | G1: الرصيد الحالى | H1: =J34 -> 0
A3: م | B3: مسحوبـــــــــــات | F3: تنزيـــــــــــــــــــــــــلات | J3: الرصيد
B4: المبلغ | C4: البيان | D4: التاريخ | E4: اليوم | F4: المبلغ | G4: البيان | H4: التاريخ | I4: اليوم
A5: 1 | D5: 2023-01-01 | E5: =IF(D5="","",TEXT(D5,"ddd")) -> الأحد | I5: =IF(H5="","",TEXT(H5,"ddd")) ->  | J5: =B5-F5 -> 0
A6: 2 | E6: =IF(D6="","",TEXT(D6,"ddd")) ->  | I6: =IF(H6="","",TEXT(H6,"ddd")) ->  | J6: =J5+B6-F6 -> 0
A7: 3 | J7: =J6+B7-F7 -> 0
A8: 4 | J8: 0
A9: 5 | J9: 0
A10: 6 | J10: 0
A11: 7 | J11: 0
A12: 8 | J12: 0
A13: 9 | J13: 0
A14: 10 | J14: 0
A15: 11 | J15: 0
A16: 12 | J16: 0
A17: 13 | J17: 0
A18: 14 | J18: 0
A19: 15 | J19: 0
A20: 16 | J20: 0
A21: 17 | J21: 0
A22: 18 | J22: 0
A23: 19 | J23: 0
A24: 20 | J24: 0
A25: 21 | J25: 0
A26: 22 | J26: 0
A27: 23 | J27: 0
A28: 24 | J28: 0
A29: 25 | J29: 0
A30: 26 | J30: 0
A31: 27 | J31: 0
A32: 28 | J32: 0
A33: 29 | J33: 0
A34: 30 | J34: 0

Sheet الشيخ حسان
A1: اسم العميل | C1: الشيخ حسان | G1: الرصيد الحالى | H1: =J34 -> 0
A3: م | B3: مسحوبـــــــــــات | F3: تنزيـــــــــــــــــــــــــلات | J3: الرصيد
B4: المبلغ | C4: البيان | D4: التاريخ | E4: اليوم | F4: المبلغ | G4: البيان | H4: التاريخ | I4: اليوم
A5: 1 | D5: 2023-01-01 | E5: =IF(D5="","",TEXT(D5,"ddd")) -> الأحد | I5: =IF(H5="","",TEXT(H5,"ddd")) ->  | J5: =B5-F5 -> 0
A6: 2 | E6: =IF(D6="","",TEXT(D6,"ddd")) ->  | I6: =IF(H6="","",TEXT(H6,"ddd")) ->  | J6: =J5+B6-F6 -> 0
A7: 3 | J7: =J6+B7-F7 -> 0
A8: 4 | J8: 0
A9: 5 | J9: 0
A10: 6 | J10: 0
A11: 7 | J11: 0
A12: 8 | J12: 0
A13: 9 | J13: 0
A14: 10 | J14: 0
A15: 11 | J15: 0
A16: 12 | J16: 0
A17: 13 | J17: 0
A18: 14 | J18: 0
A19: 15 | J19: 0
A20: 16 | J20: 0
A21: 17 | J21: 0
A22: 18 | J22: 0
A23: 19 | J23: 0
A24: 20 | J24: 0
A25: 21 | J25: 0
A26: 22 | J26: 0
A27: 23 | J27: 0
A28: 24 | J28: 0
A29: 25 | J29: 0
A30: 26 | J30: 0
A31: 27 | J31: 0
A32: 28 | J32: 0
A33: 29 | J33: 0
A34: 30 | J34: 0

Sheet ربيع هنداوى
A1: اسم العميل | C1: ربيع هنداوى | G1: الرصيد الحالى | H1: =J34 -> 0
A3: م | B3: مسحوبـــــــــــات | F3: تنزيـــــــــــــــــــــــــلات | J3: الرصيد
B4: المبلغ | C4: البيان | D4: التاريخ | E4: اليوم | F4: المبلغ | G4: البيان | H4: التاريخ | I4: اليوم
A5: 1 | D5: 2023-01-01 | E5: =IF(D5="","",TEXT(D5,"ddd")) -> الأحد | I5: =IF(H5="","",TEXT(H5,"ddd")) ->  | J5: =B5-F5 -> 0
A6: 2 | E6: =IF(D6="","",TEXT(D6,"ddd")) ->  | I6: =IF(H6="","",TEXT(H6,"ddd")) ->  | J6: =J5+B6-F6 -> 0
A7: 3 | J7: =J6+B7-F7 -> 0
A8: 4 | J8: 0
A9: 5 | J9: 0
A10: 6 | J10: 0
A11: 7 | J11: 0
A12: 8 | J12: 0
A13: 9 | J13: 0
A14: 10 | J14: 0
A15: 11 | J15: 0
A16: 12 | J16: 0
A17: 13 | J17: 0
A18: 14 | J18: 0
A19: 15 | J19: 0
A20: 16 | J20: 0
A21: 17 | J21: 0
A22: 18 | J22: 0
A23: 19 | J23: 0
A24: 20 | J24: 0
A25: 21 | J25: 0
A26: 22 | J26: 0
A27: 23 | J27: 0
A28: 24 | J28: 0
A29: 25 | J29: 0
A30: 26 | J30: 0
A31: 27 | J31: 0
A32: 28 | J32: 0
A33: 29 | J33: 0
A34: 30 | J34: 0

Sheet محمد صبحى عبد التواب
A1: اسم العميل | C1: محمد صبحى عبد التواب | G1: الرصيد الحالى | H1: =J34 -> 0
A3: م | B3: مسحوبـــــــــــات | F3: تنزيـــــــــــــــــــــــــلات | J3: الرصيد
B4: المبلغ | C4: البيان | D4: التاريخ | E4: اليوم | F4: المبلغ | G4: البيان | H4: التاريخ | I4: اليوم
A5: 1 | D5: 2023-01-01 | E5: =IF(D5="","",TEXT(D5,"ddd")) -> الأحد | I5: =IF(H5="","",TEXT(H5,"ddd")) ->  | J5: =B5-F5 -> 0
A6: 2 | E6: =IF(D6="","",TEXT(D6,"ddd")) ->  | I6: =IF(H6="","",TEXT(H6,"ddd")) ->  | J6: =J5+B6-F6 -> 0
A7: 3 | J7: =J6+B7-F7 -> 0
A8: 4 | J8: 0
A9: 5 | J9: 0
A10: 6 | J10: 0
A11: 7 | J11: 0
A12: 8 | J12: 0
A13: 9 | J13: 0
A14: 10 | J14: 0
A15: 11 | J15: 0
A16: 12 | J16: 0
A17: 13 | J17: 0
A18: 14 | J18: 0
A19: 15 | J19: 0
A20: 16 | J20: 0
A21: 17 | J21: 0
A22: 18 | J22: 0
A23: 19 | J23: 0
A24: 20 | J24: 0
A25: 21 | J25: 0
A26: 22 | J26: 0
A27: 23 | J27: 0
A28: 24 | J28: 0
A29: 25 | J29: 0
A30: 26 | J30: 0
A31: 27 | J31: 0
A32: 28 | J32: 0
A33: 29 | J33: 0
A34: 30 | J34: 0

Sheet ام الشيخ صلاح
A1: اسم العميل | C1: ام الشيخ صلاح | G1: الرصيد الحالى | H1: =J34 -> 0
A3: م | B3: مسحوبـــــــــــات | F3: تنزيـــــــــــــــــــــــــلات | J3: الرصيد
B4: المبلغ | C4: البيان | D4: التاريخ | E4: اليوم | F4: المبلغ | G4: البيان | H4: التاريخ | I4: اليوم
A5: 1 | D5: 2023-01-01 | E5: =IF(D5="","",TEXT(D5,"ddd")) -> الأحد | I5: =IF(H5="","",TEXT(H5,"ddd")) ->  | J5: =B5-F5 -> 0
A6: 2 | E6: =IF(D6="","",TEXT(D6,"ddd")) ->  | I6: =IF(H6="","",TEXT(H6,"ddd")) ->  | J6: =J5+B6-F6 -> 0
A7: 3 | J7: =J6+B7-F7 -> 0
A8: 4 | J8: 0
A9: 5 | J9: 0
A10: 6 | J10: 0
A11: 7 | J11: 0
A12: 8 | J12: 0
A13: 9 | J13: 0
A14: 10 | J14: 0
A15: 11 | J15: 0
A16: 12 | J16: 0
A17: 13 | J17: 0
A18: 14 | J18: 0
A19: 15 | J19: 0
A20: 16 | J20: 0
A21: 17 | J21: 0
A22: 18 | J22: 0
A23: 19 | J23: 0
A24: 20 | J24: 0
A25: 21 | J25: 0
A26: 22 | J26: 0
A27: 23 | J27: 0
A28: 24 | J28: 0
A29: 25 | J29: 0
A30: 26 | J30: 0
A31: 27 | J31: 0
A32: 28 | J32: 0
A33: 29 | J33: 0
A34: 30 | J34: 0

Sheet ام جمال عبد العال
A1: اسم العميل | C1: ام جمال عبد العال | G1: الرصيد الحالى | H1: =J34 -> 0
A3: م | B3: مسحوبـــــــــــات | F3: تنزيـــــــــــــــــــــــــلات | J3: الرصيد
B4: المبلغ | C4: البيان | D4: التاريخ | E4: اليوم | F4: المبلغ | G4: البيان | H4: التاريخ | I4: اليوم
A5: 1 | D5: 2023-01-01 | E5: =IF(D5="","",TEXT(D5,"ddd")) -> الأحد | I5: =IF(H5="","",TEXT(H5,"ddd")) ->  | J5: =B5-F5 -> 0
A6: 2 | E6: =IF(D6="","",TEXT(D6,"ddd")) ->  | I6: =IF(H6="","",TEXT(H6,"ddd")) ->  | J6: =J5+B6-F6 -> 0
A7: 3 | J7: =J6+B7-F7 -> 0
A8: 4 | J8: 0
A9: 5 | J9: 0
A10: 6 | J10: 0
A11: 7 | J11: 0
A12: 8 | J12: 0
A13: 9 | J13: 0
A14: 10 | J14: 0
A15: 11 | J15: 0
A16: 12 | J16: 0
A17: 13 | J17: 0
A18: 14 | J18: 0
A19: 15 | J19: 0
A20: 16 | J20: 0
A21: 17 | J21: 0
A22: 18 | J22: 0
A23: 19 | J23: 0
A24: 20 | J24: 0
A25: 21 | J25: 0
A26: 22 | J26: 0
A27: 23 | J27: 0
A28: 24 | J28: 0
A29: 25 | J29: 0
A30: 26 | J30: 0
A31: 27 | J31: 0
A32: 28 | J32: 0
A33: 29 | J33: 0
A34: 30 | J34: 0

Sheet على عبد الله
A1: اسم العميل | C1: على عبد الله | G1: الرصيد الحالى | H1: =J34 -> 0
A3: م | B3: مسحوبـــــــــــات | F3: تنزيـــــــــــــــــــــــــلات | J3: الرصيد
B4: المبلغ | C4: البيان | D4: التاريخ | E4: اليوم | F4: المبلغ | G4: البيان | H4: التاريخ | I4: اليوم
A5: 1 | D5: 2023-01-01 | E5: =IF(D5="","",TEXT(D5,"ddd")) -> الأحد | I5: =IF(H5="","",TEXT(H5,"ddd")) ->  | J5: =B5-F5 -> 0
A6: 2 | E6: =IF(D6="","",TEXT(D6,"ddd")) ->  | I6: =IF(H6="","",TEXT(H6,"ddd")) ->  | J6: =J5+B6-F6 -> 0
A7: 3 | J7: =J6+B7-F7 -> 0
A8: 4 | J8: 0
A9: 5 | J9: 0
A10: 6 | J10: 0
A11: 7 | J11: 0
A12: 8 | J12: 0
A13: 9 | J13: 0
A14: 10 | J14: 0
A15: 11 | J15: 0
A16: 12 | J16: 0
A17: 13 | J17: 0
A18: 14 | J18: 0
A19: 15 | J19: 0
A20: 16 | J20: 0
A21: 17 | J21: 0
A22: 18 | J22: 0
A23: 19 | J23: 0
A24: 20 | J24: 0
A25: 21 | J25: 0
A26: 22 | J26: 0
A27: 23 | J27: 0
A28: 24 | J28: 0
A29: 25 | J29: 0
A30: 26 | J30: 0
A31: 27 | J31: 0
A32: 28 | J32: 0
A33: 29 | J33: 0
A34: 30 | J34: 0

Sheet محمد حمزة الشايب
A1: اسم العميل | C1: محمد حمزة الشايب | G1: الرصيد الحالى | H1: =J34 -> 0
A3: م | B3: مسحوبـــــــــــات | F3: تنزيـــــــــــــــــــــــــلات | J3: الرصيد
B4: المبلغ | C4: البيان | D4: التاريخ | E4: اليوم | F4: المبلغ | G4: البيان | H4: التاريخ | I4: اليوم
A5: 1 | D5: 2023-01-01 | E5: =IF(D5="","",TEXT(D5,"ddd")) -> الأحد | I5: =IF(H5="","",TEXT(H5,"ddd")) ->  | J5: =B5-F5 -> 0
A6: 2 | E6: =IF(D6="","",TEXT(D6,"ddd")) ->  | I6: =IF(H6="","",TEXT(H6,"ddd")) ->  | J6: =J5+B6-F6 -> 0
A7: 3 | J7: =J6+B7-F7 -> 0
A8: 4 | J8: 0
A9: 5 | J9: 0
A10: 6 | J10: 0
A11: 7 | J11: 0
A12: 8 | J12: 0
A13: 9 | J13: 0
A14: 10 | J14: 0
A15: 11 | J15: 0
A16: 12 | J16: 0
A17: 13 | J17: 0
A18: 14 | J18: 0
A19: 15 | J19: 0
A20: 16 | J20: 0
A21: 17 | J21: 0
A22: 18 | J22: 0
A23: 19 | J23: 0
A24: 20 | J24: 0
A25: 21 | J25: 0
A26: 22 | J26: 0
A27: 23 | J27: 0
A28: 24 | J28: 0
A29: 25 | J29: 0
A30: 26 | J30: 0
A31: 27 | J31: 0
A32: 28 | J32: 0
A33: 29 | J33: 0
A34: 30 | J34: 0

Sheet عبد الرحمن احمد
A1: اسم العميل | C1: عبد الرحمن احمد | G1: الرصيد الحالى | H1: =J34 -> 0
A3: م | B3: مسحوبـــــــــــات | F3: تنزيـــــــــــــــــــــــــلات | J3: الرصيد
B4: المبلغ | C4: البيان | D4: التاريخ | E4: اليوم | F4: المبلغ | G4: البيان | H4: التاريخ | I4: اليوم
A5: 1 | D5: 2023-01-01 | E5: =IF(D5="","",TEXT(D5,"ddd")) -> الأحد | I5: =IF(H5="","",TEXT(H5,"ddd")) ->  | J5: =B5-F5 -> 0
A6: 2 | E6: =IF(D6="","",TEXT(D6,"ddd")) ->  | I6: =IF(H6="","",TEXT(H6,"ddd")) ->  | J6: =J5+B6-F6 -> 0
A7: 3 | J7: =J6+B7-F7 -> 0
A8: 4 | J8: 0
A9: 5 | J9: 0
A10: 6 | J10: 0
A11: 7 | J11: 0
A12: 8 | J12: 0
A13: 9 | J13: 0
A14: 10 | J14: 0
A15: 11 | J15: 0
A16: 12 | J16: 0
A17: 13 | J17: 0
A18: 14 | J18: 0
A19: 15 | J19: 0
A20: 16 | J20: 0
A21: 17 | J21: 0
A22: 18 | J22: 0
A23: 19 | J23: 0
A24: 20 | J24: 0
A25: 21 | J25: 0
A26: 22 | J26: 0
A27: 23 | J27: 0
A28: 24 | J28: 0
A29: 25 | J29: 0
A30: 26 | J30: 0
A31: 27 | J31: 0
A32: 28 | J32: 0
A33: 29 | J33: 0
A34: 30 | J34: 0

Sheet مرات صلاح محمود
A1: اسم العميل | C1: مرات صلاح محمود | G1: الرصيد الحالى | H1: =J34 -> 0
A3: م | B3: مسحوبـــــــــــات | F3: تنزيـــــــــــــــــــــــــلات | J3: الرصيد
B4: المبلغ | C4: البيان | D4: التاريخ | E4: اليوم | F4: المبلغ | G4: البيان | H4: التاريخ | I4: اليوم
A5: 1 | D5: 2023-01-01 | E5: =IF(D5="","",TEXT(D5,"ddd")) -> الأحد | I5: =IF(H5="","",TEXT(H5,"ddd")) ->  | J5: =B5-F5 -> 0
A6: 2 | E6: =IF(D6="","",TEXT(D6,"ddd")) ->  | I6: =IF(H6="","",TEXT(H6,"ddd")) ->  | J6: =J5+B6-F6 -> 0
A7: 3 | J7: =J6+B7-F7 -> 0
A8: 4 | J8: 0
A9: 5 | J9: 0
A10: 6 | J10: 0
A11: 7 | J11: 0
A12: 8 | J12: 0
A13: 9 | J13: 0
A14: 10 | J14: 0
A15: 11 | J15: 0
A16: 12 | J16: 0
A17: 13 | J17: 0
A18: 14 | J18: 0
A19: 15 | J19: 0
A20: 16 | J20: 0
A21: 17 | J21: 0
A22: 18 | J22: 0
A23: 19 | J23: 0
A24: 20 | J24: 0
A25: 21 | J25: 0
A26: 22 | J26: 0
A27: 23 | J27: 0
A28: 24 | J28: 0
A29: 25 | J29: 0
A30: 26 | J30: 0
A31: 27 | J31: 0
A32: 28 | J32: 0
A33: 29 | J33: 0
A34: 30 | J34: 0

Sheet احمد صالح حنظورة
A1: اسم العميل | C1: احمد صالح حنظورة | G1: الرصيد الحالى | H1: =J34 -> 0
A3: م | B3: مسحوبـــــــــــات | F3: تنزيـــــــــــــــــــــــــلات | J3: الرصيد
B4: المبلغ | C4: البيان | D4: التاريخ | E4: اليوم | F4: المبلغ | G4: البيان | H4: التاريخ | I4: اليوم
A5: 1 | D5: 2023-01-01 | E5: =IF(D5="","",TEXT(D5,"ddd")) -> الأحد | I5: =IF(H5="","",TEXT(H5,"ddd")) ->  | J5: =B5-F5 -> 0
A6: 2 | E6: =IF(D6="","",TEXT(D6,"ddd")) ->  | I6: =IF(H6="","",TEXT(H6,"ddd")) ->  | J6: =J5+B6-F6 -> 0
A7: 3 | J7: =J6+B7-F7 -> 0
A8: 4 | J8: 0
A9: 5 | J9: 0
A10: 6 | J10: 0
A11: 7 | J11: 0
A12: 8 | J12: 0
A13: 9 | J13: 0
A14: 10 | J14: 0
A15: 11 | J15: 0
A16: 12 | J16: 0
A17: 13 | J17: 0
A18: 14 | J18: 0
A19: 15 | J19: 0
A20: 16 | J20: 0
A21: 17 | J21: 0
A22: 18 | J22: 0
A23: 19 | J23: 0
A24: 20 | J24: 0
A25: 21 | J25: 0
A26: 22 | J26: 0
A27: 23 | J27: 0
A28: 24 | J28: 0
A29: 25 | J29: 0
A30: 26 | J30: 0
A31: 27 | J31: 0
A32: 28 | J32: 0
A33: 29 | J33: 0
A34: 30 | J34: 0

Sheet احمد ابراهيم محمد
A1: اسم العميل | C1: احمد ابراهيم محمد | G1: الرصيد الحالى | H1: =J34 -> 0
A3: م | B3: مسحوبـــــــــــات | F3: تنزيـــــــــــــــــــــــــلات | J3: الرصيد
B4: المبلغ | C4: البيان | D4: التاريخ | E4: اليوم | F4: المبلغ | G4: البيان | H4: التاريخ | I4: اليوم
A5: 1 | D5: 2023-01-01 | E5: =IF(D5="","",TEXT(D5,"ddd")) -> الأحد | I5: =IF(H5="","",TEXT(H5,"ddd")) ->  | J5: =B5-F5 -> 0
A6: 2 | E6: =IF(D6="","",TEXT(D6,"ddd")) ->  | I6: =IF(H6="","",TEXT(H6,"ddd")) ->  | J6: =J5+B6-F6 -> 0
A7: 3 | J7: =J6+B7-F7 -> 0
A8: 4 | J8: 0
A9: 5 | J9: 0
A10: 6 | J10: 0
A11: 7 | J11: 0
A12: 8 | J12: 0
A13: 9 | J13: 0
A14: 10 | J14: 0
A15: 11 | J15: 0
A16: 12 | J16: 0
A17: 13 | J17: 0
A18: 14 | J18: 0
A19: 15 | J19: 0
A20: 16 | J20: 0
A21: 17 | J21: 0
A22: 18 | J22: 0
A23: 19 | J23: 0
A24: 20 | J24: 0
A25: 21 | J25: 0
A26: 22 | J26: 0
A27: 23 | J27: 0
A28: 24 | J28: 0
A29: 25 | J29: 0
A30: 26 | J30: 0
A31: 27 | J31: 0
A32: 28 | J32: 0
A33: 29 | J33: 0
A34: 30 | J34: 0

Sheet عبد الناصر جمال
A1: اسم العميل | C1: عبد الناصر جمال | G1: الرصيد الحالى | H1: =J34 -> 0
A3: م | B3: مسحوبـــــــــــات | F3: تنزيـــــــــــــــــــــــــلات | J3: الرصيد
B4: المبلغ | C4: البيان | D4: التاريخ | E4: اليوم | F4: المبلغ | G4: البيان | H4: التاريخ | I4: اليوم
A5: 1 | D5: 2023-01-01 | E5: =IF(D5="","",TEXT(D5,"ddd")) -> الأحد | I5: =IF(H5="","",TEXT(H5,"ddd")) ->  | J5: =B5-F5 -> 0
A6: 2 | E6: =IF(D6="","",TEXT(D6,"ddd")) ->  | I6: =IF(H6="","",TEXT(H6,"ddd")) ->  | J6: =J5+B6-F6 -> 0
A7: 3 | J7: =J6+B7-F7 -> 0
A8: 4 | J8: 0
A9: 5 | J9: 0
A10: 6 | J10: 0
A11: 7 | J11: 0
A12: 8 | J12: 0
A13: 9 | J13: 0
A14: 10 | J14: 0
A15: 11 | J15: 0
A16: 12 | J16: 0
A17: 13 | J17: 0
A18: 14 | J18: 0
A19: 15 | J19: 0
A20: 16 | J20: 0
A21: 17 | J21: 0
A22: 18 | J22: 0
A23: 19 | J23: 0
A24: 20 | J24: 0
A25: 21 | J25: 0
A26: 22 | J26: 0
A27: 23 | J27: 0
A28: 24 | J28: 0
A29: 25 | J29: 0
A30: 26 | J30: 0
A31: 27 | J31: 0
A32: 28 | J32: 0
A33: 29 | J33: 0
A34: 30 | J34: 0

Sheet نبيل مجدى
A1: اسم العميل | C1: نبيل مجدى | G1: الرصيد الحالى | H1: =J34 -> 0
A3: م | B3: مسحوبـــــــــــات | F3: تنزيـــــــــــــــــــــــــلات | J3: الرصيد
B4: المبلغ | C4: البيان | D4: التاريخ | E4: اليوم | F4: المبلغ | G4: البيان | H4: التاريخ | I4: اليوم
A5: 1 | D5: 2023-01-01 | E5: =IF(D5="","",TEXT(D5,"ddd")) -> الأحد | I5: =IF(H5="","",TEXT(H5,"ddd")) ->  | J5: =B5-F5 -> 0
A6: 2 | E6: =IF(D6="","",TEXT(D6,"ddd")) ->  | I6: =IF(H6="","",TEXT(H6,"ddd")) ->  | J6: =J5+B6-F6 -> 0
A7: 3 | J7: =J6+B7-F7 -> 0
A8: 4 | J8: 0
A9: 5 | J9: 0
A10: 6 | J10: 0
A11: 7 | J11: 0
A12: 8 | J12: 0
A13: 9 | J13: 0
A14: 10 | J14: 0
A15: 11 | J15: 0
A16: 12 | J16: 0
A17: 13 | J17: 0
A18: 14 | J18: 0
A19: 15 | J19: 0
A20: 16 | J20: 0
A21: 17 | J21: 0
A22: 18 | J22: 0
A23: 19 | J23: 0
A24: 20 | J24: 0
A25: 21 | J25: 0
A26: 22 | J26: 0
A27: 23 | J27: 0
A28: 24 | J28: 0
A29: 25 | J29: 0
A30: 26 | J30: 0
A31: 27 | J31: 0
A32: 28 | J32: 0
A33: 29 | J33: 0
A34: 30 | J34: 0

Sheet محمد زغلول الميرى
A1: اسم العميل | C1: محمد زغلول الميرى | G1: الرصيد الحالى | H1: =J34 -> 0
A3: م | B3: مسحوبـــــــــــات | F3: تنزيـــــــــــــــــــــــــلات | J3: الرصيد
B4: المبلغ | C4: البيان | D4: التاريخ | E4: اليوم | F4: المبلغ | G4: البيان | H4: التاريخ | I4: اليوم
A5: 1 | D5: 2023-01-01 | E5: =IF(D5="","",TEXT(D5,"ddd")) -> الأحد | I5: =IF(H5="","",TEXT(H5,"ddd")) ->  | J5: =B5-F5 -> 0
A6: 2 | E6: =IF(D6="","",TEXT(D6,"ddd")) ->  | I6: =IF(H6="","",TEXT(H6,"ddd")) ->  | J6: =J5+B6-F6 -> 0
A7: 3 | J7: =J6+B7-F7 -> 0
A8: 4 | J8: 0
A9: 5 | J9: 0
A10: 6 | J10: 0
A11: 7 | J11: 0
A12: 8 | J12: 0
A13: 9 | J13: 0
A14: 10 | J14: 0
A15: 11 | J15: 0
A16: 12 | J16: 0
A17: 13 | J17: 0
A18: 14 | J18: 0
A19: 15 | J19: 0
A20: 16 | J20: 0
A21: 17 | J21: 0
A22: 18 | J22: 0
A23: 19 | J23: 0
A24: 20 | J24: 0
A25: 21 | J25: 0
A26: 22 | J26: 0
A27: 23 | J27: 0
A28: 24 | J28: 0
A29: 25 | J29: 0
A30: 26 | J30: 0
A31: 27 | J31: 0
A32: 28 | J32: 0
A33: 29 | J33: 0
A34: 30 | J34: 0

Sheet عيد محمد عبد الوهاب
A1: اسم العميل | C1: عيد محمد عبد الوهاب | G1: الرصيد الحالى | H1: =J34 -> 0
A3: م | B3: مسحوبـــــــــــات | F3: تنزيـــــــــــــــــــــــــلات | J3: الرصيد
B4: المبلغ | C4: البيان | D4: التاريخ | E4: اليوم | F4: المبلغ | G4: البيان | H4: التاريخ | I4: اليوم
A5: 1 | D5: 2023-01-01 | E5: =IF(D5="","",TEXT(D5,"ddd")) -> الأحد | I5: =IF(H5="","",TEXT(H5,"ddd")) ->  | J5: =B5-F5 -> 0
A6: 2 | E6: =IF(D6="","",TEXT(D6,"ddd")) ->  | I6: =IF(H6="","",TEXT(H6,"ddd")) ->  | J6: =J5+B6-F6 -> 0
A7: 3 | J7: =J6+B7-F7 -> 0
A8: 4 | J8: 0
A9: 5 | J9: 0
A10: 6 | J10: 0
A11: 7 | J11: 0
A12: 8 | J12: 0
A13: 9 | J13: 0
A14: 10 | J14: 0
A15: 11 | J15: 0
A16: 12 | J16: 0
A17: 13 | J17: 0
A18: 14 | J18: 0
A19: 15 | J19: 0
A20: 16 | J20: 0
A21: 17 | J21: 0
A22: 18 | J22: 0
A23: 19 | J23: 0
A24: 20 | J24: 0
A25: 21 | J25: 0
A26: 22 | J26: 0
A27: 23 | J27: 0
A28: 24 | J28: 0
A29: 25 | J29: 0
A30: 26 | J30: 0
A31: 27 | J31: 0
A32: 28 | J32: 0
A33: 29 | J33: 0
A34: 30 | J34: 0

Sheet همت عبد الحميد
A1: اسم العميل | C1: همت عبد الحميد | G1: الرصيد الحالى | H1: =J34 -> 0
A3: م | B3: مسحوبـــــــــــات | F3: تنزيـــــــــــــــــــــــــلات | J3: الرصيد
B4: المبلغ | C4: البيان | D4: التاريخ | E4: اليوم | F4: المبلغ | G4: البيان | H4: التاريخ | I4: اليوم
A5: 1 | D5: 2023-01-01 | E5: =IF(D5="","",TEXT(D5,"ddd")) -> الأحد | I5: =IF(H5="","",TEXT(H5,"ddd")) ->  | J5: =B5-F5 -> 0
A6: 2 | E6: =IF(D6="","",TEXT(D6,"ddd")) ->  | I6: =IF(H6="","",TEXT(H6,"ddd")) ->  | J6: =J5+B6-F6 -> 0
A7: 3 | J7: =J6+B7-F7 -> 0
A8: 4 | J8: 0
A9: 5 | J9: 0
A10: 6 | J10: 0
A11: 7 | J11: 0
A12: 8 | J12: 0
A13: 9 | J13: 0
A14: 10 | J14: 0
A15: 11 | J15: 0
A16: 12 | J16: 0
A17: 13 | J17: 0
A18: 14 | J18: 0
A19: 15 | J19: 0
A20: 16 | J20: 0
A21: 17 | J21: 0
A22: 18 | J22: 0
A23: 19 | J23: 0
A24: 20 | J24: 0
A25: 21 | J25: 0
A26: 22 | J26: 0
A27: 23 | J27: 0
A28: 24 | J28: 0
A29: 25 | J29: 0
A30: 26 | J30: 0
A31: 27 | J31: 0
A32: 28 | J32: 0
A33: 29 | J33: 0
A34: 30 | J34: 0

Sheet سعيد راضى
A1: اسم العميل | C1: سعيد راضى | G1: الرصيد الحالى | H1: =J34 -> 0
A3: م | B3: مسحوبـــــــــــات | F3: تنزيـــــــــــــــــــــــــلات | J3: الرصيد
B4: المبلغ | C4: البيان | D4: التاريخ | E4: اليوم | F4: المبلغ | G4: البيان | H4: التاريخ | I4: اليوم
A5: 1 | D5: 2023-01-01 | E5: =IF(D5="","",TEXT(D5,"ddd")) -> الأحد | I5: =IF(H5="","",TEXT(H5,"ddd")) ->  | J5: =B5-F5 -> 0
A6: 2 | E6: =IF(D6="","",TEXT(D6,"ddd")) ->  | I6: =IF(H6="","",TEXT(H6,"ddd")) ->  | J6: =J5+B6-F6 -> 0
A7: 3 | J7: =J6+B7-F7 -> 0
A8: 4 | J8: 0
A9: 5 | J9: 0
A10: 6 | J10: 0
A11: 7 | J11: 0
A12: 8 | J12: 0
A13: 9 | J13: 0
A14: 10 | J14: 0
A15: 11 | J15: 0
A16: 12 | J16: 0
A17: 13 | J17: 0
A18: 14 | J18: 0
A19: 15 | J19: 0
A20: 16 | J20: 0
A21: 17 | J21: 0
A22: 18 | J22: 0
A23: 19 | J23: 0
A24: 20 | J24: 0
A25: 21 | J25: 0
A26: 22 | J26: 0
A27: 23 | J27: 0
A28: 24 | J28: 0
A29: 25 | J29: 0
A30: 26 | J30: 0
A31: 27 | J31: 0
A32: 28 | J32: 0
A33: 29 | J33: 0
A34: 30 | J34: 0

Sheet ام ياسين الجمال
A1: اسم العميل | C1: ام ياسين الجمال | G1: الرصيد الحالى | H1: =J34 -> 0
A3: م | B3: مسحوبـــــــــــات | F3: تنزيـــــــــــــــــــــــــلات | J3: الرصيد
B4: المبلغ | C4: البيان | D4: التاريخ | E4: اليوم | F4: المبلغ | G4: البيان | H4: التاريخ | I4: اليوم
A5: 1 | D5: 2023-01-01 | E5: =IF(D5="","",TEXT(D5,"ddd")) -> الأحد | I5: =IF(H5="","",TEXT(H5,"ddd")) ->  | J5: =B5-F5 -> 0
A6: 2 | E6: =IF(D6="","",TEXT(D6,"ddd")) ->  | I6: =IF(H6="","",TEXT(H6,"ddd")) ->  | J6: =J5+B6-F6 -> 0
A7: 3 | J7: =J6+B7-F7 -> 0
A8: 4 | J8: 0
A9: 5 | J9: 0
A10: 6 | J10: 0
A11: 7 | J11: 0
A12: 8 | J12: 0
A13: 9 | J13: 0
A14: 10 | J14: 0
A15: 11 | J15: 0
A16: 12 | J16: 0
A17: 13 | J17: 0
A18: 14 | J18: 0
A19: 15 | J19: 0
A20: 16 | J20: 0
A21: 17 | J21: 0
A22: 18 | J22: 0
A23: 19 | J23: 0
A24: 20 | J24: 0
A25: 21 | J25: 0
A26: 22 | J26: 0
A27: 23 | J27: 0
A28: 24 | J28: 0
A29: 25 | J29: 0
A30: 26 | J30: 0
A31: 27 | J31: 0
A32: 28 | J32: 0
A33: 29 | J33: 0
A34: 30 | J34: 0

Sheet ام خالد عربى
A1: اسم العميل | C1: ام خالد عربى | G1: الرصيد الحالى | H1: =J34 -> 0
A3: م | B3: مسحوبـــــــــــات | F3: تنزيـــــــــــــــــــــــــلات | J3: الرصيد
B4: المبلغ | C4: البيان | D4: التاريخ | E4: اليوم | F4: المبلغ | G4: البيان | H4: التاريخ | I4: اليوم
A5: 1 | D5: 2023-01-01 | E5: =IF(D5="","",TEXT(D5,"ddd")) -> الأحد | I5: =IF(H5="","",TEXT(H5,"ddd")) ->  | J5: =B5-F5 -> 0
A6: 2 | E6: =IF(D6="","",TEXT(D6,"ddd")) ->  | I6: =IF(H6="","",TEXT(H6,"ddd")) ->  | J6: =J5+B6-F6 -> 0
A7: 3 | J7: =J6+B7-F7 -> 0
A8: 4 | J8: 0
A9: 5 | J9: 0
A10: 6 | J10: 0
A11: 7 | J11: 0
A12: 8 | J12: 0
A13: 9 | J13: 0
A14: 10 | J14: 0
A15: 11 | J15: 0
A16: 12 | J16: 0
A17: 13 | J17: 0
A18: 14 | J18: 0
A19: 15 | J19: 0
A20: 16 | J20: 0
A21: 17 | J21: 0
A22: 18 | J22: 0
A23: 19 | J23: 0
A24: 20 | J24: 0
A25: 21 | J25: 0
A26: 22 | J26: 0
A27: 23 | J27: 0
A28: 24 | J28: 0
A29: 25 | J29: 0
A30: 26 | J30: 0
A31: 27 | J31: 0
A32: 28 | J32: 0
A33: 29 | J33: 0
A34: 30 | J34: 0

Sheet عمرو محمد رجب
A1: اسم العميل | C1: عمرو محمد رجب | G1: الرصيد الحالى | H1: =J34 -> 0
A3: م | B3: مسحوبـــــــــــات | F3: تنزيـــــــــــــــــــــــــلات | J3: الرصيد
B4: المبلغ | C4: البيان | D4: التاريخ | E4: اليوم | F4: المبلغ | G4: البيان | H4: التاريخ | I4: اليوم
A5: 1 | D5: 2023-01-01 | E5: =IF(D5="","",TEXT(D5,"ddd")) -> الأحد | I5: =IF(H5="","",TEXT(H5,"ddd")) ->  | J5: =B5-F5 -> 0
A6: 2 | E6: =IF(D6="","",TEXT(D6,"ddd")) ->  | I6: =IF(H6="","",TEXT(H6,"ddd")) ->  | J6: =J5+B6-F6 -> 0
A7: 3 | J7: =J6+B7-F7 -> 0
A8: 4 | J8: 0
A9: 5 | J9: 0
A10: 6 | J10: 0
A11: 7 | J11: 0
A12: 8 | J12: 0
A13: 9 | J13: 0
A14: 10 | J14: 0
A15: 11 | J15: 0
A16: 12 | J16: 0
A17: 13 | J17: 0
A18: 14 | J18: 0
A19: 15 | J19: 0
A20: 16 | J20: 0
A21: 17 | J21: 0
A22: 18 | J22: 0
A23: 19 | J23: 0
A24: 20 | J24: 0
A25: 21 | J25: 0
A26: 22 | J26: 0
A27: 23 | J27: 0
A28: 24 | J28: 0
A29: 25 | J29: 0
A30: 26 | J30: 0
A31: 27 | J31: 0
A32: 28 | J32: 0
A33: 29 | J33: 0
A34: 30 | J34: 0

Sheet ربيع جمعه
A1: اسم العميل | C1: ربيع جمعه | G1: الرصيد الحالى | H1: =J34 -> 0
A3: م | B3: مسحوبـــــــــــات | F3: تنزيـــــــــــــــــــــــــلات | J3: الرصيد
B4: المبلغ | C4: البيان | D4: التاريخ | E4: اليوم | F4: المبلغ | G4: البيان | H4: التاريخ | I4: اليوم
A5: 1 | D5: 2023-01-01 | E5: =IF(D5="","",TEXT(D5,"ddd")) -> الأحد | I5: =IF(H5="","",TEXT(H5,"ddd")) ->  | J5: =B5-F5 -> 0
A6: 2 | E6: =IF(D6="","",TEXT(D6,"ddd")) ->  | I6: =IF(H6="","",TEXT(H6,"ddd")) ->  | J6: =J5+B6-F6 -> 0
A7: 3 | J7: =J6+B7-F7 -> 0
A8: 4 | J8: 0
A9: 5 | J9: 0
A10: 6 | J10: 0
A11: 7 | J11: 0
A12: 8 | J12: 0
A13: 9 | J13: 0
A14: 10 | J14: 0
A15: 11 | J15: 0
A16: 12 | J16: 0
A17: 13 | J17: 0
A18: 14 | J18: 0
A19: 15 | J19: 0
A20: 16 | J20: 0
A21: 17 | J21: 0
A22: 18 | J22: 0
A23: 19 | J23: 0
A24: 20 | J24: 0
A25: 21 | J25: 0
A26: 22 | J26: 0
A27: 23 | J27: 0
A28: 24 | J28: 0
A29: 25 | J29: 0
A30: 26 | J30: 0
A31: 27 | J31: 0
A32: 28 | J32: 0
A33: 29 | J33: 0
A34: 30 | J34: 0

Sheet محمد راضى عبد العليم
A1: اسم العميل | C1: محمد راضى عبد العليم | G1: الرصيد الحالى | H1: =J34 -> 0
A3: م | B3: مسحوبـــــــــــات | F3: تنزيـــــــــــــــــــــــــلات | J3: الرصيد
B4: المبلغ | C4: البيان | D4: التاريخ | E4: اليوم | F4: المبلغ | G4: البيان | H4: التاريخ | I4: اليوم
A5: 1 | D5: 2023-01-01 | E5: =IF(D5="","",TEXT(D5,"ddd")) -> الأحد | I5: =IF(H5="","",TEXT(H5,"ddd")) ->  | J5: =B5-F5 -> 0
A6: 2 | E6: =IF(D6="","",TEXT(D6,"ddd")) ->  | I6: =IF(H6="","",TEXT(H6,"ddd")) ->  | J6: =J5+B6-F6 -> 0
A7: 3 | J7: =J6+B7-F7 -> 0
A8: 4 | J8: 0
A9: 5 | J9: 0
A10: 6 | J10: 0
A11: 7 | J11: 0
A12: 8 | J12: 0
A13: 9 | J13: 0
A14: 10 | J14: 0
A15: 11 | J15: 0
A16: 12 | J16: 0
A17: 13 | J17: 0
A18: 14 | J18: 0
A19: 15 | J19: 0
A20: 16 | J20: 0
A21: 17 | J21: 0
A22: 18 | J22: 0
A23: 19 | J23: 0
A24: 20 | J24: 0
A25: 21 | J25: 0
A26: 22 | J26: 0
A27: 23 | J27: 0
A28: 24 | J28: 0
A29: 25 | J29: 0
A30: 26 | J30: 0
A31: 27 | J31: 0
A32: 28 | J32: 0
A33: 29 | J33: 0
A34: 30 | J34: 0

Sheet مرات استاذ عماد عبد السميع
A1: اسم العميل | C1: مرات استاذ عماد عبد السميع | G1: الرصيد الحالى | H1: =J34 -> 0
A3: م | B3: مسحوبـــــــــــات | F3: تنزيـــــــــــــــــــــــــلات | J3: الرصيد
B4: المبلغ | C4: البيان | D4: التاريخ | E4: اليوم | F4: المبلغ | G4: البيان | H4: التاريخ | I4: اليوم
A5: 1 | D5: 2023-01-01 | E5: =IF(D5="","",TEXT(D5,"ddd")) -> الأحد | I5: =IF(H5="","",TEXT(H5,"ddd")) ->  | J5: =B5-F5 -> 0
A6: 2 | E6: =IF(D6="","",TEXT(D6,"ddd")) ->  | I6: =IF(H6="","",TEXT(H6,"ddd")) ->  | J6: =J5+B6-F6 -> 0
A7: 3 | J7: =J6+B7-F7 -> 0
A8: 4 | J8: 0
A9: 5 | J9: 0
A10: 6 | J10: 0
A11: 7 | J11: 0
A12: 8 | J12: 0
A13: 9 | J13: 0
A14: 10 | J14: 0
A15: 11 | J15: 0
A16: 12 | J16: 0
A17: 13 | J17: 0
A18: 14 | J18: 0
A19: 15 | J19: 0
A20: 16 | J20: 0
A21: 17 | J21: 0
A22: 18 | J22: 0
A23: 19 | J23: 0
A24: 20 | J24: 0
A25: 21 | J25: 0
A26: 22 | J26: 0
A27: 23 | J27: 0
A28: 24 | J28: 0
A29: 25 | J29: 0
A30: 26 | J30: 0
A31: 27 | J31: 0
A32: 28 | J32: 0
A33: 29 | J33: 0
A34: 30 | J34: 0
